{"text_format":"1","workbook":"xlsx","n_sheets":61,"sheets":["Disclaimer","Instructions","Example","Enter New Record","Field List","Applicators","Record_1","Record_2","Record_3","Record_4","Record_5","Record_6","Record_7","Record_8","Record_9","Record_10","Record_11","Record_12","Record_13","Record_14","Record_15","Record_16","Record_17","Record_18","Record_19","Record_20","Record_21","Record_22","Record_23","Record_24","Record_25","Record_26","Record_27","Record_28","Record_29","Record_30","Record_31","Record_32","Record_33","Record_34","Record_35","Record_36","Record_37","Record_38","Record_39","Record_40","Record_41","Record_42","Record_43","Record_44","Record_45","Record_46","Record_47","Record_48","Record_49","Record_50","Conversions","Sprayer Calibration","Tips","RUP Pesticide Products","Other Pesticides"],"not_rendered":{"charts":0,"images":5,"macros":1,"external_links":0,"defined_names":53,"comments":1,"pivot_tables":0},"unopened":[],"bounds":{"document_bytes":16777216,"sheet_cells":100000,"rows_first":2000,"rows_last":500,"rows_between":2000,"halvings":0,"cell_chars":16384,"cell_head_chars":4096},"cells_cut":0,"cells_raw":0,"read":"whole","date_system":"1900"}

{"sheet":"Disclaimer","index":0,"n_rows":5,"n_cols":2,"rows_kept":5,"cut":false,"hidden":false,"merged":[[4,1,8,10]]}
[]
[]
[]
[]
[null,"Note: The information in this booklet was current as of April, 2012, but it is subject to change at any time.  The pesticide label always supersedes any educational material such as this publication.  Always read and follow label instructions precisely.  Information presented in this publication on commercial products is for educational purposes only.  Reference to commercial products does not imply endorsement, nor is criticism implied of products not mentioned."]

{"sheet":"Instructions","index":1,"n_rows":58,"n_cols":3,"rows_kept":58,"cut":false,"hidden":false,"merged":[[44,2,44,3],[46,2,46,3],[34,1,36,1],[4,1,6,1],[20,1,23,1],[30,1,32,1],[25,1,26,1],[12,1,15,1]]}
[null,"Follow these steps to use the Pesticide Record Workbook:    "]
[]
[null,"1.  You may wish to print these instructions for easy reference. "]
[]
[null,"2.  Macros must be enabled in order for this workbook to function properly.  If you have not already enabled the macros, you must do so before continuing.  If you see the warning shown below displayed beneath your formula bar click \"Enable Content.\" This will allow the workbook to function properly. (Excell 2007 has a slightly different warning.)"]
[]
[]
[]
[]
[null,"3.  After thoroughly reading instructions, click 'Start Using Workbook'.  This will bring up a window where you can enter your information.                                                       "]
[]
[]
[null,"4.  Fill out the cells on the Enter New Record page, starting with Field Name.  White cells are for required information.  Gold cells are for optional information.  After entering information in a cell, hit the Enter key to proceed to the next cell.  Click the down arrow to select from the RUP product list.  If your product is not listed, scroll to the top of the RUP list and select  ***MY PRODUCT IS NOT LISTED***, and then follow the prompts.  (To look at an example record, go to the Example page.)  "]
[]
[]
[]
[null,"5.  Always double check the EPA registration number and Active Ingredient(s) provided in this workbook against the actual product label. "]
[]
[null,"6.  This workbook is programed to remember the Restricted Entry Interval (REI) values that you enter. If you enter a REI for a product that doesn't have one recorded already, a pop-up window will ask if you want to save the REI that you entered for future use (Choose Yes and the REI will be saved for next time you use the product). Similarly if you enter a REI value different than the value that is saved you will be asked if you want to replace the existing value with the value that you entered. To delete all recorded REI Values click the button to the right. "]
[]
[null,"7.  When you have filled all the required cells, you must store the record.  At the bottom of the Enter New Record sheet, there are two buttons.  The left one is for beginning a new Record page (the first time a record has been entered for this particular field).  The right button is for storing a subsequent pesticide application record to an existing Record page (if this is not the first record for this particular field).  Click the button that describes what you would like to do with the new record.                                                                                                                                                                                 "]
[]
[]
[]
[]
[null,"8.  Clicking either of the buttons at the bottom of the \"Enter New Record\" page will take you to the Record page that you just added to. Each Record page stores pesticide application records for one crop on one particular field, and can easily be printed if a hard copy of the record is desired.  Again, each Record page is used for a separate crop and field.                                                                                                                                                                                                                                                                            "]
[]
[]
[null,"9. The file that you downloaded is in the .xls [Compatibility Mode] format. If you have Microsft Excel 2007 or newer you will have better funcanality by saving as a .xlsm document. To do so Click File --> Save As. Under \"Save as type:\" select \"Microsoft Excel Macro-Enabled Workbook\". Click Save. Once the file is saved, close the program and reopen it. Note: you will now likely have two files in your folder with the same name. The new file will be smaller and of the type \"Microsoft Excel Macro-Enabled Workbook\". (You can check the file type by right clicking and selecting \"Properties\".) You can delete the older .xls file (file type: Microsfot Excel 97-2003 Worksheet) as you won't need it."]
[]
[null,"10.  Saving records:  After entering your application record(s) you may want to save this file on your computer as another filename (for example, 2012RUPrecords.xlsm).  This allows the original file to be kept as an unmodified copy and the new file to be used from year to year without having to re-enter field names and locations. If you save the file as another filename and you have Microsoft Excel 2007 or newer be sure to save as a Microsoft Excel Macro-Enabled Worksheet (the .xlsm extension) to ensure the workbook will function properly."]
[]
[]
[]
[null,"11.  On each Record page there is a Clear button that clears the record for that page.  Once the Clear button is clicked, the information is lost forever."]
[]
[]
[]
[null,"12. There is also a Clear Application Records button on each record page that clears the application records for the that page and keeps the Field Information for future use. To clear Application Records on all Record pages click the button to the right. It is suggested to print records before clearing them so the hard copy may be saved and/or save a back up digital copy (see Instructions # 8). (Remember, records must be kept for 2 years.)      "]
[]
[null,"13. Multiple Applicators: This program is capable of recording records taken by up to five applicators. The current applicator can be changed via the drop-down menu underneath the Applicator Information heading on the Enter New Record Page. New applicators can be added from this menu by selecting Enter New Applicator. Applicator information can be edited and new applicators can also be added on the Applicators page. Click the button on the right to proceed to the Applicator page."]
[]
[null,"14. Widow Zoom: For your convenience the workbook has built in zoom options for two screen resolutions; \"Full Screen\" (1024 x 768) and \"Widescreen\" (1366 x 768). It is recomended that you choose one of these options. If you choose to set the zoom manually errors may occur. "]
[]
[null,{"$f":"IF('Enter New Record'!AA4=\"WPS\",B57,B58)","v":"15. The workbook is currently set up to record BOTH Restricted Use Pesticide (RUP) Records and Worker Protection Standard (WPS) records. Any producer that employs individuals must comply with WPS requirements. To change the workbook to only record RUP records, click \"Reset Workbook\" and choose \"No\" when asked if anyone other than your imediate family works on your farm. For more information on WPS go to http://www.colostate.edu/Depts/SoilCrop/extension/CEPEP/Worker%20Protection/how_to_comply.html"},"Click for more information about WPS"]
[]
[null,"16.  For additional information, go to www.csuwater.info and click the Pesticide Record Book link, or click the link on the right.","Pesticide Record Book"]
[]
[null,"17. As new RUP Pesticides be come available your RUP list will become outdated, to retrieve the most recent RUP list click the button on the right."]
[]
[null,"18. Managing Fields. The Field List page is the best way to manage field information. If you need to change information for a field after you have created the Record (name, location, crop, variety or acerage) make the changes on the Field List Page the click \"Update Field Information.\" You can enter the infomation for all of your fields/crops on the Field List Page at once (Click Go to Field List to begin) OR you can enter the fields as you enter new records (Click Start Using Workbook to begin). "]
[]
[]
[]
[]
[]
[null,"15. The workbook is currently set up to record BOTH Restricted Use Pesticide (RUP) Records and Worker Protection Standard (WPS) records. Any producer that employs individuals must comply with WPS requirements. To change the workbook to only record RUP records, click \"Reset Workbook\" and choose \"No\" when asked if anyone other than your imediate family works on your farm. For more information on WPS go to http://www.colostate.edu/Depts/SoilCrop/extension/CEPEP/Worker%20Protection/how_to_comply.html"]
[null,"15. The workbook is currently set up to record ONLY Restricted Use Pesticide (RUP) Records. Any producer that employs individuals must comply with Worker Protection Standards (WPS) requirements. To change the workbook to record WPS records as well as RUP records, click \"Reset Workbook\" and choose \"Yes\" when asked if anyone other than your imediate family works on your farm. For more information on WPS go to http://www.colostate.edu/Depts/SoilCrop/extension/CEPEP/Worker%20Protection/how_to_comply.html"]

{"sheet":"Example","index":2,"n_rows":0,"n_cols":0,"rows_kept":0,"cut":false,"hidden":false,"merged":[[7,2,7,5],[8,2,8,5],[9,2,9,5],[10,2,10,5],[11,2,11,5],[13,2,13,5],[12,1,12,3],[12,4,12,5],[19,2,19,5],[20,2,20,5],[21,2,21,5],[22,2,22,5],[14,2,14,5],[18,2,18,5],[17,2,17,5],[15,2,15,5],[16,2,16,5]]}

{"sheet":"Enter New Record","index":3,"n_rows":26,"n_cols":28,"rows_kept":26,"cut":false,"hidden":false,"merged":[[1,27,3,27],[31,2,34,5],[12,1,12,3],[12,4,12,5],[13,2,13,3],[16,2,16,5],[21,2,21,5],[25,1,25,5],[17,9,18,10],[7,2,7,5],[8,2,8,5],[9,2,9,5],[11,2,11,5],[10,2,10,5],[12,9,13,10],[24,2,24,5],[22,2,22,5],[14,2,14,5],[23,2,23,5],[15,2,15,5],[20,2,20,5],[17,2,17,5],[18,2,18,5],[19,2,19,5]]}
[null,null,null,null,null,null,null,null,null,null,null,null,null,null,null,null,null,null,null,null,null,null,null,null,null,null,1,1]
[null,null,null,null,null,null,null,null,null,null,null,null,null,null,null,null,null,null,null,null,null,null,null,null,null,null,1,"DO NOT ERASE!"]
[null,null,null,null,null,null,null,null,null,null,null,null,null,null,null,null,null,null,null,null,null,null,null,null,null,null,1]
[null,null,null,null,null,null,null,null,null,null,null,null,null,null,null,null,null,null,null,null,null,null,null,null,null,null,"WPS"]
[]
[]
[]
[null,"Field Name:"]
[null,"Location:"]
[null,"Crop:"]
[null,"Variety (opt.):"]
[null,"Application Date:"]
[null,"RUP Product Used:",null,null,"General Use Product",null,null,null,null,"Applicator Information"]
[null,"EPA Reg. Number:"]
[null,"Acres Treated:",null,null,null,null,null,null,null,"Name:"]
[null,"Total Amount:",null,null,null,null,null,null,null,"Certification Number:"]
[null,"Application Time:",null,null,null,null,null,null,null,"Certification Expiration Date:"]
[null,"Restr. Entry Interval:",null,null,null,null,null,null,null,"*** To Enter New Applicators Select \"Enter New Applicator\" on the drop down menu above. ***"]
[null,"Active Ingredient(s):"]
[null,"Additive:"]
[null,"Nozzle:"]
[null,"Wind:"]
[null,"Rate:"]
[null,"GPA:"]
[null,"Other/Notes:"]
[null,"* Use the enter key to proceed to the next cell."]

{"sheet":"Field List","index":4,"n_rows":54,"n_cols":9,"rows_kept":54,"cut":false,"hidden":false,"merged":[[0,0,1,3]]}
["If you need to change or add any field information, do so on this page then click  \"Update Field Information.\""]
[]
[null,"Field Name","Location","Crop","Variety","Acreage",null,null,"Filed Name and Crop"]
[null,null,null,null,null,null,null,null,"(Select From List)"]
["Record 1",null,null,null,null,null,null,null,{"$f":"IF(B5=\"\",\"\",B5 & \", \" &D5)","v":""}]
["Record 2",null,null,null,null,null,null,null,{"$f":"IF(B6=\"\",\"\",B6 & \", \" &D6)","v":""}]
["Record 3",null,null,null,null,null,null,null,""]
["Record 4",null,null,null,null,null,null,null,""]
["Record 5",null,null,null,null,null,null,null,""]
["Record 6",null,null,null,null,null,null,null,""]
["Record 7",null,null,null,null,null,null,null,""]
["Record 8",null,null,null,null,null,null,null,""]
["Record 9",null,null,null,null,null,null,null,""]
["Record 10",null,null,null,null,null,null,null,""]
["Record 11",null,null,null,null,null,null,null,""]
["Record 12",null,null,null,null,null,null,null,""]
["Record 13",null,null,null,null,null,null,null,""]
["Record 14",null,null,null,null,null,null,null,""]
["Record 15",null,null,null,null,null,null,null,""]
["Record 16",null,null,null,null,null,null,null,""]
["Record 17",null,null,null,null,null,null,null,""]
["Record 18",null,null,null,null,null,null,null,""]
["Record 19",null,null,null,null,null,null,null,""]
["Record 20",null,null,null,null,null,null,null,""]
["Record 21",null,null,null,null,null,null,null,""]
["Record 22",null,null,null,null,null,null,null,""]
["Record 23",null,null,null,null,null,null,null,""]
["Record 24",null,null,null,null,null,null,null,""]
["Record 25",null,null,null,null,null,null,null,""]
["Record 26",null,null,null,null,null,null,null,""]
["Record 27",null,null,null,null,null,null,null,""]
["Record 28",null,null,null,null,null,null,null,""]
["Record 29",null,null,null,null,null,null,null,""]
["Record 30",null,null,null,null,null,null,null,""]
["Record 31",null,null,null,null,null,null,null,""]
["Record 32",null,null,null,null,null,null,null,""]
["Record 33",null,null,null,null,null,null,null,""]
["Record 34",null,null,null,null,null,null,null,""]
["Record 35",null,null,null,null,null,null,null,""]
["Record 36",null,null,null,null,null,null,null,""]
["Record 37",null,null,null,null,null,null,null,""]
["Record 38",null,null,null,null,null,null,null,""]
["Record 39",null,null,null,null,null,null,null,""]
["Record 40",null,null,null,null,null,null,null,""]
["Record 41",null,null,null,null,null,null,null,""]
["Record 42",null,null,null,null,null,null,null,""]
["Record 43",null,null,null,null,null,null,null,""]
["Record 44",null,null,null,null,null,null,null,""]
["Record 45",null,null,null,null,null,null,null,""]
["Record 46",null,null,null,null,null,null,null,""]
["Record 47",null,null,null,null,null,null,null,""]
["Record 48",null,null,null,null,null,null,null,""]
["Record 49",null,null,null,null,null,null,null,""]
["Record 50",null,null,null,null,null,null,null,""]

{"sheet":"Applicators","index":5,"n_rows":3,"n_cols":3,"rows_kept":3,"cut":false,"hidden":false,"merged":[[0,0,0,2]]}
["Pesticide Applicator Information Page"]
["Name","Certification Number","Certification Expiration Date"]
["Enter New Applicator"]

{"sheet":"Record_1","index":6,"n_rows":20,"n_cols":11,"rows_kept":20,"cut":false,"hidden":true,"merged":[[3,10,10,11],[18,1,18,7],[0,1,0,7],[1,1,1,2],[1,3,1,7],[2,2,2,3],[2,5,2,7],[19,7,20,7],[19,2,20,2],[19,3,20,3],[19,4,20,4],[19,5,20,5],[19,6,20,6]]}
[null,"REQUIRED FEDERAL and WPS Pesticide application Records for an Individual Field"]
[null,"Field Name and Location:"]
[null,"Crop:",null,null,"Variety (opt.):"]
[null,"Applicator Name:",null,null,null,null,null,null,null,null,"Note: User may type directly in cells, if desired.  \r\nTo update 'Field Name and Location:', 'Crop:', or 'Variety (opt.):' go to the Field List page."]
[null,"Application Date:"]
[null,"Brand Name:"]
[null,"EPA reg Number:"]
[null,"Acres Treated:"]
[null,"Total Amount:"]
[null,"Application Time:"]
[null,"REI:"]
[null,"Active Ingredient(s):"]
[null,"Optional Records"]
[null,"Additive:"]
[null,"Nozzle:"]
[null,"Wind:"]
[null,"Rate:"]
[null,"GPA:"]
[null,"            = categories only required for Federal Records"]
[null,"Other/Notes:"]

{"sheet":"Record_2","index":7,"n_rows":20,"n_cols":11,"rows_kept":20,"cut":false,"hidden":true,"merged":[[3,10,10,11],[18,1,18,7],[0,1,0,7],[1,1,1,2],[1,3,1,7],[2,2,2,3],[2,5,2,7],[19,7,20,7],[19,2,20,2],[19,3,20,3],[19,4,20,4],[19,5,20,5],[19,6,20,6]]}
[null,"REQUIRED FEDERAL and WPS Pesticide application Records for an Individual Field"]
[null,"Field Name and Location:"]
[null,"Crop:",null,null,"Variety (opt.):"]
[null,"Applicator Name:",null,null,null,null,null,null,null,null,"Note: User may type directly in cells, if desired.  \r\nTo update 'Field Name and Location:', 'Crop:', or 'Variety (opt.):' go to the Field List page."]
[null,"Application Date:"]
[null,"Brand Name:"]
[null,"EPA reg Number:"]
[null,"Acres Treated:"]
[null,"Total Amount:"]
[null,"Application Time:"]
[null,"REI:"]
[null,"Active Ingredient(s):"]
[null,"Optional Records"]
[null,"Additive:"]
[null,"Nozzle:"]
[null,"Wind:"]
[null,"Rate:"]
[null,"GPA:"]
[null,"            = categories only required for Federal Records"]
[null,"Other/Notes:"]

{"sheet":"Record_3","index":8,"n_rows":20,"n_cols":11,"rows_kept":20,"cut":false,"hidden":true,"merged":[[3,10,10,11],[18,1,18,7],[0,1,0,7],[1,1,1,2],[1,3,1,7],[2,2,2,3],[2,5,2,7],[19,7,20,7],[19,2,20,2],[19,3,20,3],[19,4,20,4],[19,5,20,5],[19,6,20,6]]}
[null,"REQUIRED FEDERAL and WPS Pesticide application Records for an Individual Field"]
[null,"Field Name and Location:"]
[null,"Crop:",null,null,"Variety (opt.):"]
[null,"Applicator Name:",null,null,null,null,null,null,null,null,"Note: User may type directly in cells, if desired.  \r\nTo update 'Field Name and Location:', 'Crop:', or 'Variety (opt.):' go to the Field List page."]
[null,"Application Date:"]
[null,"Brand Name:"]
[null,"EPA reg Number:"]
[null,"Acres Treated:"]
[null,"Total Amount:"]
[null,"Application Time:"]
[null,"REI:"]
[null,"Active Ingredient(s):"]
[null,"Optional Records"]
[null,"Additive:"]
[null,"Nozzle:"]
[null,"Wind:"]
[null,"Rate:"]
[null,"GPA:"]
[null,"            = categories only required for Federal Records"]
[null,"Other/Notes:"]

{"sheet":"Record_4","index":9,"n_rows":20,"n_cols":11,"rows_kept":20,"cut":false,"hidden":true,"merged":[[3,10,10,11],[18,1,18,7],[0,1,0,7],[1,1,1,2],[1,3,1,7],[2,2,2,3],[2,5,2,7],[19,7,20,7],[19,2,20,2],[19,3,20,3],[19,4,20,4],[19,5,20,5],[19,6,20,6]]}
[null,"REQUIRED FEDERAL and WPS Pesticide application Records for an Individual Field"]
[null,"Field Name and Location:"]
[null,"Crop:",null,null,"Variety (opt.):"]
[null,"Applicator Name:",null,null,null,null,null,null,null,null,"Note: User may type directly in cells, if desired.  \r\nTo update 'Field Name and Location:', 'Crop:', or 'Variety (opt.):' go to the Field List page."]
[null,"Application Date:"]
[null,"Brand Name:"]
[null,"EPA reg Number:"]
[null,"Acres Treated:"]
[null,"Total Amount:"]
[null,"Application Time:"]
[null,"REI:"]
[null,"Active Ingredient(s):"]
[null,"Optional Records"]
[null,"Additive:"]
[null,"Nozzle:"]
[null,"Wind:"]
[null,"Rate:"]
[null,"GPA:"]
[null,"            = categories only required for Federal Records"]
[null,"Other/Notes:"]

{"sheet":"Record_5","index":10,"n_rows":20,"n_cols":11,"rows_kept":20,"cut":false,"hidden":true,"merged":[[3,10,10,11],[18,1,18,7],[0,1,0,7],[1,1,1,2],[1,3,1,7],[2,2,2,3],[2,5,2,7],[19,7,20,7],[19,2,20,2],[19,3,20,3],[19,4,20,4],[19,5,20,5],[19,6,20,6]]}
[null,"REQUIRED FEDERAL and WPS Pesticide application Records for an Individual Field"]
[null,"Field Name and Location:"]
[null,"Crop:",null,null,"Variety (opt.):"]
[null,"Applicator Name:",null,null,null,null,null,null,null,null,"Note: User may type directly in cells, if desired.  \r\nTo update 'Field Name and Location:', 'Crop:', or 'Variety (opt.):' go to the Field List page."]
[null,"Application Date:"]
[null,"Brand Name:"]
[null,"EPA reg Number:"]
[null,"Acres Treated:"]
[null,"Total Amount:"]
[null,"Application Time:"]
[null,"REI:"]
[null,"Active Ingredient(s):"]
[null,"Optional Records"]
[null,"Additive:"]
[null,"Nozzle:"]
[null,"Wind:"]
[null,"Rate:"]
[null,"GPA:"]
[null,"            = categories only required for Federal Records"]
[null,"Other/Notes:"]

{"sheet":"Record_6","index":11,"n_rows":20,"n_cols":11,"rows_kept":20,"cut":false,"hidden":true,"merged":[[3,10,10,11],[18,1,18,7],[0,1,0,7],[1,1,1,2],[1,3,1,7],[2,2,2,3],[2,5,2,7],[19,7,20,7],[19,2,20,2],[19,3,20,3],[19,4,20,4],[19,5,20,5],[19,6,20,6]]}
[null,"REQUIRED FEDERAL and WPS Pesticide application Records for an Individual Field"]
[null,"Field Name and Location:"]
[null,"Crop:",null,null,"Variety (opt.):"]
[null,"Applicator Name:",null,null,null,null,null,null,null,null,"Note: User may type directly in cells, if desired.  \r\nTo update 'Field Name and Location:', 'Crop:', or 'Variety (opt.):' go to the Field List page."]
[null,"Application Date:"]
[null,"Brand Name:"]
[null,"EPA reg Number:"]
[null,"Acres Treated:"]
[null,"Total Amount:"]
[null,"Application Time:"]
[null,"REI:"]
[null,"Active Ingredient(s):"]
[null,"Optional Records"]
[null,"Additive:"]
[null,"Nozzle:"]
[null,"Wind:"]
[null,"Rate:"]
[null,"GPA:"]
[null,"            = categories only required for Federal Records"]
[null,"Other/Notes:"]

{"sheet":"Record_7","index":12,"n_rows":20,"n_cols":11,"rows_kept":20,"cut":false,"hidden":true,"merged":[[3,10,10,11],[18,1,18,7],[0,1,0,7],[1,1,1,2],[1,3,1,7],[2,2,2,3],[2,5,2,7],[19,7,20,7],[19,2,20,2],[19,3,20,3],[19,4,20,4],[19,5,20,5],[19,6,20,6]]}
[null,"REQUIRED FEDERAL and WPS Pesticide application Records for an Individual Field"]
[null,"Field Name and Location:"]
[null,"Crop:",null,null,"Variety (opt.):"]
[null,"Applicator Name:",null,null,null,null,null,null,null,null,"Note: User may type directly in cells, if desired.  \r\nTo update 'Field Name and Location:', 'Crop:', or 'Variety (opt.):' go to the Field List page."]
[null,"Application Date:"]
[null,"Brand Name:"]
[null,"EPA reg Number:"]
[null,"Acres Treated:"]
[null,"Total Amount:"]
[null,"Application Time:"]
[null,"REI:"]
[null,"Active Ingredient(s):"]
[null,"Optional Records"]
[null,"Additive:"]
[null,"Nozzle:"]
[null,"Wind:"]
[null,"Rate:"]
[null,"GPA:"]
[null,"            = categories only required for Federal Records"]
[null,"Other/Notes:"]

{"sheet":"Record_8","index":13,"n_rows":20,"n_cols":11,"rows_kept":20,"cut":false,"hidden":true,"merged":[[3,10,10,11],[18,1,18,7],[0,1,0,7],[1,1,1,2],[1,3,1,7],[2,2,2,3],[2,5,2,7],[19,7,20,7],[19,2,20,2],[19,3,20,3],[19,4,20,4],[19,5,20,5],[19,6,20,6]]}
[null,"REQUIRED FEDERAL and WPS Pesticide application Records for an Individual Field"]
[null,"Field Name and Location:"]
[null,"Crop:",null,null,"Variety (opt.):"]
[null,"Applicator Name:",null,null,null,null,null,null,null,null,"Note: User may type directly in cells, if desired.  \r\nTo update 'Field Name and Location:', 'Crop:', or 'Variety (opt.):' go to the Field List page."]
[null,"Application Date:"]
[null,"Brand Name:"]
[null,"EPA reg Number:"]
[null,"Acres Treated:"]
[null,"Total Amount:"]
[null,"Application Time:"]
[null,"REI:"]
[null,"Active Ingredient(s):"]
[null,"Optional Records"]
[null,"Additive:"]
[null,"Nozzle:"]
[null,"Wind:"]
[null,"Rate:"]
[null,"GPA:"]
[null,"            = categories only required for Federal Records"]
[null,"Other/Notes:"]

{"sheet":"Record_9","index":14,"n_rows":20,"n_cols":11,"rows_kept":20,"cut":false,"hidden":true,"merged":[[3,10,10,11],[18,1,18,7],[0,1,0,7],[1,1,1,2],[1,3,1,7],[2,2,2,3],[2,5,2,7],[19,7,20,7],[19,2,20,2],[19,3,20,3],[19,4,20,4],[19,5,20,5],[19,6,20,6]]}
[null,"REQUIRED FEDERAL and WPS Pesticide application Records for an Individual Field"]
[null,"Field Name and Location:"]
[null,"Crop:",null,null,"Variety (opt.):"]
[null,"Applicator Name:",null,null,null,null,null,null,null,null,"Note: User may type directly in cells, if desired.  \r\nTo update 'Field Name and Location:', 'Crop:', or 'Variety (opt.):' go to the Field List page."]
[null,"Application Date:"]
[null,"Brand Name:"]
[null,"EPA reg Number:"]
[null,"Acres Treated:"]
[null,"Total Amount:"]
[null,"Application Time:"]
[null,"REI:"]
[null,"Active Ingredient(s):"]
[null,"Optional Records"]
[null,"Additive:"]
[null,"Nozzle:"]
[null,"Wind:"]
[null,"Rate:"]
[null,"GPA:"]
[null,"            = categories only required for Federal Records"]
[null,"Other/Notes:"]

{"sheet":"Record_10","index":15,"n_rows":20,"n_cols":11,"rows_kept":20,"cut":false,"hidden":true,"merged":[[3,10,10,11],[18,1,18,7],[0,1,0,7],[1,1,1,2],[1,3,1,7],[2,2,2,3],[2,5,2,7],[19,7,20,7],[19,2,20,2],[19,3,20,3],[19,4,20,4],[19,5,20,5],[19,6,20,6]]}
[null,"REQUIRED FEDERAL and WPS Pesticide application Records for an Individual Field"]
[null,"Field Name and Location:"]
[null,"Crop:",null,null,"Variety (opt.):"]
[null,"Applicator Name:",null,null,null,null,null,null,null,null,"Note: User may type directly in cells, if desired.  \r\nTo update 'Field Name and Location:', 'Crop:', or 'Variety (opt.):' go to the Field List page."]
[null,"Application Date:"]
[null,"Brand Name:"]
[null,"EPA reg Number:"]
[null,"Acres Treated:"]
[null,"Total Amount:"]
[null,"Application Time:"]
[null,"REI:"]
[null,"Active Ingredient(s):"]
[null,"Optional Records"]
[null,"Additive:"]
[null,"Nozzle:"]
[null,"Wind:"]
[null,"Rate:"]
[null,"GPA:"]
[null,"            = categories only required for Federal Records"]
[null,"Other/Notes:"]

{"sheet":"Record_11","index":16,"n_rows":20,"n_cols":11,"rows_kept":20,"cut":false,"hidden":true,"merged":[[3,10,10,11],[18,1,18,7],[2,2,2,3],[2,5,2,7],[0,1,0,7],[1,1,1,2],[1,3,1,7],[19,7,20,7],[19,2,20,2],[19,3,20,3],[19,4,20,4],[19,5,20,5],[19,6,20,6]]}
[null,"REQUIRED FEDERAL and WPS Pesticide application Records for an Individual Field"]
[null,"Field Name and Location:"]
[null,"Crop:",null,null,"Variety (opt.):"]
[null,"Applicator Name:",null,null,null,null,null,null,null,null,"Note: User may type directly in cells, if desired.  \r\nTo update 'Field Name and Location:', 'Crop:', or 'Variety (opt.):' go to the Field List page."]
[null,"Application Date:"]
[null,"Brand Name:"]
[null,"EPA reg Number:"]
[null,"Acres Treated:"]
[null,"Total Amount:"]
[null,"Application Time:"]
[null,"REI:"]
[null,"Active Ingredient(s):"]
[null,"Optional Records"]
[null,"Additive:"]
[null,"Nozzle:"]
[null,"Wind:"]
[null,"Rate:"]
[null,"GPA:"]
[null,"            = categories only required for Federal Records"]
[null,"Other/Notes:"]

{"sheet":"Record_12","index":17,"n_rows":20,"n_cols":11,"rows_kept":20,"cut":false,"hidden":true,"merged":[[3,10,10,11],[18,1,18,7],[2,2,2,3],[2,5,2,7],[0,1,0,7],[1,1,1,2],[1,3,1,7],[19,7,20,7],[19,2,20,2],[19,3,20,3],[19,4,20,4],[19,5,20,5],[19,6,20,6]]}
[null,"REQUIRED FEDERAL and WPS Pesticide application Records for an Individual Field"]
[null,"Field Name and Location:"]
[null,"Crop:",null,null,"Variety (opt.):"]
[null,"Applicator Name:",null,null,null,null,null,null,null,null,"Note: User may type directly in cells, if desired.  \r\nTo update 'Field Name and Location:', 'Crop:', or 'Variety (opt.):' go to the Field List page."]
[null,"Application Date:"]
[null,"Brand Name:"]
[null,"EPA reg Number:"]
[null,"Acres Treated:"]
[null,"Total Amount:"]
[null,"Application Time:"]
[null,"REI:"]
[null,"Active Ingredient(s):"]
[null,"Optional Records"]
[null,"Additive:"]
[null,"Nozzle:"]
[null,"Wind:"]
[null,"Rate:"]
[null,"GPA:"]
[null,"            = categories only required for Federal Records"]
[null,"Other/Notes:"]

{"sheet":"Record_13","index":18,"n_rows":20,"n_cols":11,"rows_kept":20,"cut":false,"hidden":true,"merged":[[3,10,10,11],[18,1,18,7],[2,2,2,3],[2,5,2,7],[0,1,0,7],[1,1,1,2],[1,3,1,7],[19,7,20,7],[19,2,20,2],[19,3,20,3],[19,4,20,4],[19,5,20,5],[19,6,20,6]]}
[null,"REQUIRED FEDERAL and WPS Pesticide application Records for an Individual Field"]
[null,"Field Name and Location:"]
[null,"Crop:",null,null,"Variety (opt.):"]
[null,"Applicator Name:",null,null,null,null,null,null,null,null,"Note: User may type directly in cells, if desired.  \r\nTo update 'Field Name and Location:', 'Crop:', or 'Variety (opt.):' go to the Field List page."]
[null,"Application Date:"]
[null,"Brand Name:"]
[null,"EPA reg Number:"]
[null,"Acres Treated:"]
[null,"Total Amount:"]
[null,"Application Time:"]
[null,"REI:"]
[null,"Active Ingredient(s):"]
[null,"Optional Records"]
[null,"Additive:"]
[null,"Nozzle:"]
[null,"Wind:"]
[null,"Rate:"]
[null,"GPA:"]
[null,"            = categories only required for Federal Records"]
[null,"Other/Notes:"]

{"sheet":"Record_14","index":19,"n_rows":20,"n_cols":11,"rows_kept":20,"cut":false,"hidden":true,"merged":[[3,10,10,11],[18,1,18,7],[2,2,2,3],[2,5,2,7],[0,1,0,7],[1,1,1,2],[1,3,1,7],[19,7,20,7],[19,2,20,2],[19,3,20,3],[19,4,20,4],[19,5,20,5],[19,6,20,6]]}
[null,"REQUIRED FEDERAL and WPS Pesticide application Records for an Individual Field"]
[null,"Field Name and Location:"]
[null,"Crop:",null,null,"Variety (opt.):"]
[null,"Applicator Name:",null,null,null,null,null,null,null,null,"Note: User may type directly in cells, if desired.  \r\nTo update 'Field Name and Location:', 'Crop:', or 'Variety (opt.):' go to the Field List page."]
[null,"Application Date:"]
[null,"Brand Name:"]
[null,"EPA reg Number:"]
[null,"Acres Treated:"]
[null,"Total Amount:"]
[null,"Application Time:"]
[null,"REI:"]
[null,"Active Ingredient(s):"]
[null,"Optional Records"]
[null,"Additive:"]
[null,"Nozzle:"]
[null,"Wind:"]
[null,"Rate:"]
[null,"GPA:"]
[null,"            = categories only required for Federal Records"]
[null,"Other/Notes:"]

{"sheet":"Record_15","index":20,"n_rows":20,"n_cols":11,"rows_kept":20,"cut":false,"hidden":true,"merged":[[3,10,10,11],[18,1,18,7],[2,2,2,3],[2,5,2,7],[0,1,0,7],[1,1,1,2],[1,3,1,7],[19,7,20,7],[19,2,20,2],[19,3,20,3],[19,4,20,4],[19,5,20,5],[19,6,20,6]]}
[null,"REQUIRED FEDERAL and WPS Pesticide application Records for an Individual Field"]
[null,"Field Name and Location:"]
[null,"Crop:",null,null,"Variety (opt.):"]
[null,"Applicator Name:",null,null,null,null,null,null,null,null,"Note: User may type directly in cells, if desired.  \r\nTo update 'Field Name and Location:', 'Crop:', or 'Variety (opt.):' go to the Field List page."]
[null,"Application Date:"]
[null,"Brand Name:"]
[null,"EPA reg Number:"]
[null,"Acres Treated:"]
[null,"Total Amount:"]
[null,"Application Time:"]
[null,"REI:"]
[null,"Active Ingredient(s):"]
[null,"Optional Records"]
[null,"Additive:"]
[null,"Nozzle:"]
[null,"Wind:"]
[null,"Rate:"]
[null,"GPA:"]
[null,"            = categories only required for Federal Records"]
[null,"Other/Notes:"]

{"sheet":"Record_16","index":21,"n_rows":20,"n_cols":11,"rows_kept":20,"cut":false,"hidden":true,"merged":[[3,10,10,11],[18,1,18,7],[2,2,2,3],[2,5,2,7],[0,1,0,7],[1,1,1,2],[1,3,1,7],[19,7,20,7],[19,2,20,2],[19,3,20,3],[19,4,20,4],[19,5,20,5],[19,6,20,6]]}
[null,"REQUIRED FEDERAL and WPS Pesticide application Records for an Individual Field"]
[null,"Field Name and Location:"]
[null,"Crop:",null,null,"Variety (opt.):"]
[null,"Applicator Name:",null,null,null,null,null,null,null,null,"Note: User may type directly in cells, if desired.  \r\nTo update 'Field Name and Location:', 'Crop:', or 'Variety (opt.):' go to the Field List page."]
[null,"Application Date:"]
[null,"Brand Name:"]
[null,"EPA reg Number:"]
[null,"Acres Treated:"]
[null,"Total Amount:"]
[null,"Application Time:"]
[null,"REI:"]
[null,"Active Ingredient(s):"]
[null,"Optional Records"]
[null,"Additive:"]
[null,"Nozzle:"]
[null,"Wind:"]
[null,"Rate:"]
[null,"GPA:"]
[null,"            = categories only required for Federal Records"]
[null,"Other/Notes:"]

{"sheet":"Record_17","index":22,"n_rows":20,"n_cols":11,"rows_kept":20,"cut":false,"hidden":true,"merged":[[3,10,10,11],[18,1,18,7],[2,2,2,3],[2,5,2,7],[0,1,0,7],[1,1,1,2],[1,3,1,7],[19,7,20,7],[19,2,20,2],[19,3,20,3],[19,4,20,4],[19,5,20,5],[19,6,20,6]]}
[null,"REQUIRED FEDERAL and WPS Pesticide application Records for an Individual Field"]
[null,"Field Name and Location:"]
[null,"Crop:",null,null,"Variety (opt.):"]
[null,"Applicator Name:",null,null,null,null,null,null,null,null,"Note: User may type directly in cells, if desired.  \r\nTo update 'Field Name and Location:', 'Crop:', or 'Variety (opt.):' go to the Field List page."]
[null,"Application Date:"]
[null,"Brand Name:"]
[null,"EPA reg Number:"]
[null,"Acres Treated:"]
[null,"Total Amount:"]
[null,"Application Time:"]
[null,"REI:"]
[null,"Active Ingredient(s):"]
[null,"Optional Records"]
[null,"Additive:"]
[null,"Nozzle:"]
[null,"Wind:"]
[null,"Rate:"]
[null,"GPA:"]
[null,"            = categories only required for Federal Records"]
[null,"Other/Notes:"]

{"sheet":"Record_18","index":23,"n_rows":20,"n_cols":11,"rows_kept":20,"cut":false,"hidden":true,"merged":[[3,10,10,11],[18,1,18,7],[2,2,2,3],[2,5,2,7],[0,1,0,7],[1,1,1,2],[1,3,1,7],[19,7,20,7],[19,2,20,2],[19,3,20,3],[19,4,20,4],[19,5,20,5],[19,6,20,6]]}
[null,"REQUIRED FEDERAL and WPS Pesticide application Records for an Individual Field"]
[null,"Field Name and Location:"]
[null,"Crop:",null,null,"Variety (opt.):"]
[null,"Applicator Name:",null,null,null,null,null,null,null,null,"Note: User may type directly in cells, if desired.  \r\nTo update 'Field Name and Location:', 'Crop:', or 'Variety (opt.):' go to the Field List page."]
[null,"Application Date:"]
[null,"Brand Name:"]
[null,"EPA reg Number:"]
[null,"Acres Treated:"]
[null,"Total Amount:"]
[null,"Application Time:"]
[null,"REI:"]
[null,"Active Ingredient(s):"]
[null,"Optional Records"]
[null,"Additive:"]
[null,"Nozzle:"]
[null,"Wind:"]
[null,"Rate:"]
[null,"GPA:"]
[null,"            = categories only required for Federal Records"]
[null,"Other/Notes:"]

{"sheet":"Record_19","index":24,"n_rows":20,"n_cols":11,"rows_kept":20,"cut":false,"hidden":true,"merged":[[3,10,10,11],[18,1,18,7],[2,2,2,3],[2,5,2,7],[0,1,0,7],[1,1,1,2],[1,3,1,7],[19,7,20,7],[19,2,20,2],[19,3,20,3],[19,4,20,4],[19,5,20,5],[19,6,20,6]]}
[null,"REQUIRED FEDERAL and WPS Pesticide application Records for an Individual Field"]
[null,"Field Name and Location:"]
[null,"Crop:",null,null,"Variety (opt.):"]
[null,"Applicator Name:",null,null,null,null,null,null,null,null,"Note: User may type directly in cells, if desired.  \r\nTo update 'Field Name and Location:', 'Crop:', or 'Variety (opt.):' go to the Field List page."]
[null,"Application Date:"]
[null,"Brand Name:"]
[null,"EPA reg Number:"]
[null,"Acres Treated:"]
[null,"Total Amount:"]
[null,"Application Time:"]
[null,"REI:"]
[null,"Active Ingredient(s):"]
[null,"Optional Records"]
[null,"Additive:"]
[null,"Nozzle:"]
[null,"Wind:"]
[null,"Rate:"]
[null,"GPA:"]
[null,"            = categories only required for Federal Records"]
[null,"Other/Notes:"]

{"sheet":"Record_20","index":25,"n_rows":20,"n_cols":11,"rows_kept":20,"cut":false,"hidden":true,"merged":[[3,10,10,11],[18,1,18,7],[2,2,2,3],[2,5,2,7],[0,1,0,7],[1,1,1,2],[1,3,1,7],[19,7,20,7],[19,2,20,2],[19,3,20,3],[19,4,20,4],[19,5,20,5],[19,6,20,6]]}
[null,"REQUIRED FEDERAL and WPS Pesticide application Records for an Individual Field"]
[null,"Field Name and Location:"]
[null,"Crop:",null,null,"Variety (opt.):"]
[null,"Applicator Name:",null,null,null,null,null,null,null,null,"Note: User may type directly in cells, if desired.  \r\nTo update 'Field Name and Location:', 'Crop:', or 'Variety (opt.):' go to the Field List page."]
[null,"Application Date:"]
[null,"Brand Name:"]
[null,"EPA reg Number:"]
[null,"Acres Treated:"]
[null,"Total Amount:"]
[null,"Application Time:"]
[null,"REI:"]
[null,"Active Ingredient(s):"]
[null,"Optional Records"]
[null,"Additive:"]
[null,"Nozzle:"]
[null,"Wind:"]
[null,"Rate:"]
[null,"GPA:"]
[null,"            = categories only required for Federal Records"]
[null,"Other/Notes:"]

{"sheet":"Record_21","index":26,"n_rows":20,"n_cols":11,"rows_kept":20,"cut":false,"hidden":true,"merged":[[3,10,10,11],[18,1,18,7],[2,2,2,3],[2,5,2,7],[0,1,0,7],[1,1,1,2],[1,3,1,7],[19,7,20,7],[19,2,20,2],[19,3,20,3],[19,4,20,4],[19,5,20,5],[19,6,20,6]]}
[null,"REQUIRED FEDERAL and WPS Pesticide application Records for an Individual Field"]
[null,"Field Name and Location:"]
[null,"Crop:",null,null,"Variety (opt.):"]
[null,"Applicator Name:",null,null,null,null,null,null,null,null,"Note: User may type directly in cells, if desired.  \r\nTo update 'Field Name and Location:', 'Crop:', or 'Variety (opt.):' go to the Field List page."]
[null,"Application Date:"]
[null,"Brand Name:"]
[null,"EPA reg Number:"]
[null,"Acres Treated:"]
[null,"Total Amount:"]
[null,"Application Time:"]
[null,"REI:"]
[null,"Active Ingredient(s):"]
[null,"Optional Records"]
[null,"Additive:"]
[null,"Nozzle:"]
[null,"Wind:"]
[null,"Rate:"]
[null,"GPA:"]
[null,"            = categories only required for Federal Records"]
[null,"Other/Notes:"]

{"sheet":"Record_22","index":27,"n_rows":20,"n_cols":11,"rows_kept":20,"cut":false,"hidden":true,"merged":[[3,10,10,11],[18,1,18,7],[2,2,2,3],[2,5,2,7],[0,1,0,7],[1,1,1,2],[1,3,1,7],[19,7,20,7],[19,2,20,2],[19,3,20,3],[19,4,20,4],[19,5,20,5],[19,6,20,6]]}
[null,"REQUIRED FEDERAL and WPS Pesticide application Records for an Individual Field"]
[null,"Field Name and Location:"]
[null,"Crop:",null,null,"Variety (opt.):"]
[null,"Applicator Name:",null,null,null,null,null,null,null,null,"Note: User may type directly in cells, if desired.  \r\nTo update 'Field Name and Location:', 'Crop:', or 'Variety (opt.):' go to the Field List page."]
[null,"Application Date:"]
[null,"Brand Name:"]
[null,"EPA reg Number:"]
[null,"Acres Treated:"]
[null,"Total Amount:"]
[null,"Application Time:"]
[null,"REI:"]
[null,"Active Ingredient(s):"]
[null,"Optional Records"]
[null,"Additive:"]
[null,"Nozzle:"]
[null,"Wind:"]
[null,"Rate:"]
[null,"GPA:"]
[null,"            = categories only required for Federal Records"]
[null,"Other/Notes:"]

{"sheet":"Record_23","index":28,"n_rows":20,"n_cols":11,"rows_kept":20,"cut":false,"hidden":true,"merged":[[3,10,10,11],[18,1,18,7],[2,2,2,3],[2,5,2,7],[0,1,0,7],[1,1,1,2],[1,3,1,7],[19,7,20,7],[19,2,20,2],[19,3,20,3],[19,4,20,4],[19,5,20,5],[19,6,20,6]]}
[null,"REQUIRED FEDERAL and WPS Pesticide application Records for an Individual Field"]
[null,"Field Name and Location:"]
[null,"Crop:",null,null,"Variety (opt.):"]
[null,"Applicator Name:",null,null,null,null,null,null,null,null,"Note: User may type directly in cells, if desired.  \r\nTo update 'Field Name and Location:', 'Crop:', or 'Variety (opt.):' go to the Field List page."]
[null,"Application Date:"]
[null,"Brand Name:"]
[null,"EPA reg Number:"]
[null,"Acres Treated:"]
[null,"Total Amount:"]
[null,"Application Time:"]
[null,"REI:"]
[null,"Active Ingredient(s):"]
[null,"Optional Records"]
[null,"Additive:"]
[null,"Nozzle:"]
[null,"Wind:"]
[null,"Rate:"]
[null,"GPA:"]
[null,"            = categories only required for Federal Records"]
[null,"Other/Notes:"]

{"sheet":"Record_24","index":29,"n_rows":20,"n_cols":11,"rows_kept":20,"cut":false,"hidden":true,"merged":[[3,10,10,11],[18,1,18,7],[2,2,2,3],[2,5,2,7],[0,1,0,7],[1,1,1,2],[1,3,1,7],[19,7,20,7],[19,2,20,2],[19,3,20,3],[19,4,20,4],[19,5,20,5],[19,6,20,6]]}
[null,"REQUIRED FEDERAL and WPS Pesticide application Records for an Individual Field"]
[null,"Field Name and Location:"]
[null,"Crop:",null,null,"Variety (opt.):"]
[null,"Applicator Name:",null,null,null,null,null,null,null,null,"Note: User may type directly in cells, if desired.  \r\nTo update 'Field Name and Location:', 'Crop:', or 'Variety (opt.):' go to the Field List page."]
[null,"Application Date:"]
[null,"Brand Name:"]
[null,"EPA reg Number:"]
[null,"Acres Treated:"]
[null,"Total Amount:"]
[null,"Application Time:"]
[null,"REI:"]
[null,"Active Ingredient(s):"]
[null,"Optional Records"]
[null,"Additive:"]
[null,"Nozzle:"]
[null,"Wind:"]
[null,"Rate:"]
[null,"GPA:"]
[null,"            = categories only required for Federal Records"]
[null,"Other/Notes:"]

{"sheet":"Record_25","index":30,"n_rows":20,"n_cols":11,"rows_kept":20,"cut":false,"hidden":true,"merged":[[3,10,10,11],[18,1,18,7],[2,2,2,3],[2,5,2,7],[0,1,0,7],[1,1,1,2],[1,3,1,7],[19,7,20,7],[19,2,20,2],[19,3,20,3],[19,4,20,4],[19,5,20,5],[19,6,20,6]]}
[null,"REQUIRED FEDERAL and WPS Pesticide application Records for an Individual Field"]
[null,"Field Name and Location:"]
[null,"Crop:",null,null,"Variety (opt.):"]
[null,"Applicator Name:",null,null,null,null,null,null,null,null,"Note: User may type directly in cells, if desired.  \r\nTo update 'Field Name and Location:', 'Crop:', or 'Variety (opt.):' go to the Field List page."]
[null,"Application Date:"]
[null,"Brand Name:"]
[null,"EPA reg Number:"]
[null,"Acres Treated:"]
[null,"Total Amount:"]
[null,"Application Time:"]
[null,"REI:"]
[null,"Active Ingredient(s):"]
[null,"Optional Records"]
[null,"Additive:"]
[null,"Nozzle:"]
[null,"Wind:"]
[null,"Rate:"]
[null,"GPA:"]
[null,"            = categories only required for Federal Records"]
[null,"Other/Notes:"]

{"sheet":"Record_26","index":31,"n_rows":20,"n_cols":11,"rows_kept":20,"cut":false,"hidden":true,"merged":[[3,10,10,11],[18,1,18,7],[2,2,2,3],[2,5,2,7],[0,1,0,7],[1,1,1,2],[1,3,1,7],[19,7,20,7],[19,2,20,2],[19,3,20,3],[19,4,20,4],[19,5,20,5],[19,6,20,6]]}
[null,"REQUIRED FEDERAL and WPS Pesticide application Records for an Individual Field"]
[null,"Field Name and Location:"]
[null,"Crop:",null,null,"Variety (opt.):"]
[null,"Applicator Name:",null,null,null,null,null,null,null,null,"Note: User may type directly in cells, if desired.  \r\nTo update 'Field Name and Location:', 'Crop:', or 'Variety (opt.):' go to the Field List page."]
[null,"Application Date:"]
[null,"Brand Name:"]
[null,"EPA reg Number:"]
[null,"Acres Treated:"]
[null,"Total Amount:"]
[null,"Application Time:"]
[null,"REI:"]
[null,"Active Ingredient(s):"]
[null,"Optional Records"]
[null,"Additive:"]
[null,"Nozzle:"]
[null,"Wind:"]
[null,"Rate:"]
[null,"GPA:"]
[null,"            = categories only required for Federal Records"]
[null,"Other/Notes:"]

{"sheet":"Record_27","index":32,"n_rows":20,"n_cols":11,"rows_kept":20,"cut":false,"hidden":true,"merged":[[3,10,10,11],[18,1,18,7],[2,2,2,3],[2,5,2,7],[0,1,0,7],[1,1,1,2],[1,3,1,7],[19,7,20,7],[19,2,20,2],[19,3,20,3],[19,4,20,4],[19,5,20,5],[19,6,20,6]]}
[null,"REQUIRED FEDERAL and WPS Pesticide application Records for an Individual Field"]
[null,"Field Name and Location:"]
[null,"Crop:",null,null,"Variety (opt.):"]
[null,"Applicator Name:",null,null,null,null,null,null,null,null,"Note: User may type directly in cells, if desired.  \r\nTo update 'Field Name and Location:', 'Crop:', or 'Variety (opt.):' go to the Field List page."]
[null,"Application Date:"]
[null,"Brand Name:"]
[null,"EPA reg Number:"]
[null,"Acres Treated:"]
[null,"Total Amount:"]
[null,"Application Time:"]
[null,"REI:"]
[null,"Active Ingredient(s):"]
[null,"Optional Records"]
[null,"Additive:"]
[null,"Nozzle:"]
[null,"Wind:"]
[null,"Rate:"]
[null,"GPA:"]
[null,"            = categories only required for Federal Records"]
[null,"Other/Notes:"]

{"sheet":"Record_28","index":33,"n_rows":20,"n_cols":11,"rows_kept":20,"cut":false,"hidden":true,"merged":[[3,10,10,11],[18,1,18,7],[2,2,2,3],[2,5,2,7],[0,1,0,7],[1,1,1,2],[1,3,1,7],[19,7,20,7],[19,2,20,2],[19,3,20,3],[19,4,20,4],[19,5,20,5],[19,6,20,6]]}
[null,"REQUIRED FEDERAL and WPS Pesticide application Records for an Individual Field"]
[null,"Field Name and Location:"]
[null,"Crop:",null,null,"Variety (opt.):"]
[null,"Applicator Name:",null,null,null,null,null,null,null,null,"Note: User may type directly in cells, if desired.  \r\nTo update 'Field Name and Location:', 'Crop:', or 'Variety (opt.):' go to the Field List page."]
[null,"Application Date:"]
[null,"Brand Name:"]
[null,"EPA reg Number:"]
[null,"Acres Treated:"]
[null,"Total Amount:"]
[null,"Application Time:"]
[null,"REI:"]
[null,"Active Ingredient(s):"]
[null,"Optional Records"]
[null,"Additive:"]
[null,"Nozzle:"]
[null,"Wind:"]
[null,"Rate:"]
[null,"GPA:"]
[null,"            = categories only required for Federal Records"]
[null,"Other/Notes:"]

{"sheet":"Record_29","index":34,"n_rows":20,"n_cols":11,"rows_kept":20,"cut":false,"hidden":true,"merged":[[3,10,10,11],[18,1,18,7],[2,2,2,3],[2,5,2,7],[0,1,0,7],[1,1,1,2],[1,3,1,7],[19,7,20,7],[19,2,20,2],[19,3,20,3],[19,4,20,4],[19,5,20,5],[19,6,20,6]]}
[null,"REQUIRED FEDERAL and WPS Pesticide application Records for an Individual Field"]
[null,"Field Name and Location:"]
[null,"Crop:",null,null,"Variety (opt.):"]
[null,"Applicator Name:",null,null,null,null,null,null,null,null,"Note: User may type directly in cells, if desired.  \r\nTo update 'Field Name and Location:', 'Crop:', or 'Variety (opt.):' go to the Field List page."]
[null,"Application Date:"]
[null,"Brand Name:"]
[null,"EPA reg Number:"]
[null,"Acres Treated:"]
[null,"Total Amount:"]
[null,"Application Time:"]
[null,"REI:"]
[null,"Active Ingredient(s):"]
[null,"Optional Records"]
[null,"Additive:"]
[null,"Nozzle:"]
[null,"Wind:"]
[null,"Rate:"]
[null,"GPA:"]
[null,"            = categories only required for Federal Records"]
[null,"Other/Notes:"]

{"sheet":"Record_30","index":35,"n_rows":20,"n_cols":11,"rows_kept":20,"cut":false,"hidden":true,"merged":[[3,10,10,11],[18,1,18,7],[2,2,2,3],[2,5,2,7],[0,1,0,7],[1,1,1,2],[1,3,1,7],[19,7,20,7],[19,2,20,2],[19,3,20,3],[19,4,20,4],[19,5,20,5],[19,6,20,6]]}
[null,"REQUIRED FEDERAL and WPS Pesticide application Records for an Individual Field"]
[null,"Field Name and Location:"]
[null,"Crop:",null,null,"Variety (opt.):"]
[null,"Applicator Name:",null,null,null,null,null,null,null,null,"Note: User may type directly in cells, if desired.  \r\nTo update 'Field Name and Location:', 'Crop:', or 'Variety (opt.):' go to the Field List page."]
[null,"Application Date:"]
[null,"Brand Name:"]
[null,"EPA reg Number:"]
[null,"Acres Treated:"]
[null,"Total Amount:"]
[null,"Application Time:"]
[null,"REI:"]
[null,"Active Ingredient(s):"]
[null,"Optional Records"]
[null,"Additive:"]
[null,"Nozzle:"]
[null,"Wind:"]
[null,"Rate:"]
[null,"GPA:"]
[null,"            = categories only required for Federal Records"]
[null,"Other/Notes:"]

{"sheet":"Record_31","index":36,"n_rows":20,"n_cols":11,"rows_kept":20,"cut":false,"hidden":true,"merged":[[3,10,10,11],[18,1,18,7],[2,2,2,3],[2,5,2,7],[0,1,0,7],[1,1,1,2],[1,3,1,7],[19,7,20,7],[19,2,20,2],[19,3,20,3],[19,4,20,4],[19,5,20,5],[19,6,20,6]]}
[null,"REQUIRED FEDERAL and WPS Pesticide application Records for an Individual Field"]
[null,"Field Name and Location:"]
[null,"Crop:",null,null,"Variety (opt.):"]
[null,"Applicator Name:",null,null,null,null,null,null,null,null,"Note: User may type directly in cells, if desired.  \r\nTo update 'Field Name and Location:', 'Crop:', or 'Variety (opt.):' go to the Field List page."]
[null,"Application Date:"]
[null,"Brand Name:"]
[null,"EPA reg Number:"]
[null,"Acres Treated:"]
[null,"Total Amount:"]
[null,"Application Time:"]
[null,"REI:"]
[null,"Active Ingredient(s):"]
[null,"Optional Records"]
[null,"Additive:"]
[null,"Nozzle:"]
[null,"Wind:"]
[null,"Rate:"]
[null,"GPA:"]
[null,"            = categories only required for Federal Records"]
[null,"Other/Notes:"]

{"sheet":"Record_32","index":37,"n_rows":20,"n_cols":11,"rows_kept":20,"cut":false,"hidden":true,"merged":[[3,10,10,11],[18,1,18,7],[2,2,2,3],[2,5,2,7],[0,1,0,7],[1,1,1,2],[1,3,1,7],[19,7,20,7],[19,2,20,2],[19,3,20,3],[19,4,20,4],[19,5,20,5],[19,6,20,6]]}
[null,"REQUIRED FEDERAL and WPS Pesticide application Records for an Individual Field"]
[null,"Field Name and Location:"]
[null,"Crop:",null,null,"Variety (opt.):"]
[null,"Applicator Name:",null,null,null,null,null,null,null,null,"Note: User may type directly in cells, if desired.  \r\nTo update 'Field Name and Location:', 'Crop:', or 'Variety (opt.):' go to the Field List page."]
[null,"Application Date:"]
[null,"Brand Name:"]
[null,"EPA reg Number:"]
[null,"Acres Treated:"]
[null,"Total Amount:"]
[null,"Application Time:"]
[null,"REI:"]
[null,"Active Ingredient(s):"]
[null,"Optional Records"]
[null,"Additive:"]
[null,"Nozzle:"]
[null,"Wind:"]
[null,"Rate:"]
[null,"GPA:"]
[null,"            = categories only required for Federal Records"]
[null,"Other/Notes:"]

{"sheet":"Record_33","index":38,"n_rows":20,"n_cols":11,"rows_kept":20,"cut":false,"hidden":true,"merged":[[3,10,10,11],[18,1,18,7],[2,2,2,3],[2,5,2,7],[0,1,0,7],[1,1,1,2],[1,3,1,7],[19,7,20,7],[19,2,20,2],[19,3,20,3],[19,4,20,4],[19,5,20,5],[19,6,20,6]]}
[null,"REQUIRED FEDERAL and WPS Pesticide application Records for an Individual Field"]
[null,"Field Name and Location:"]
[null,"Crop:",null,null,"Variety (opt.):"]
[null,"Applicator Name:",null,null,null,null,null,null,null,null,"Note: User may type directly in cells, if desired.  \r\nTo update 'Field Name and Location:', 'Crop:', or 'Variety (opt.):' go to the Field List page."]
[null,"Application Date:"]
[null,"Brand Name:"]
[null,"EPA reg Number:"]
[null,"Acres Treated:"]
[null,"Total Amount:"]
[null,"Application Time:"]
[null,"REI:"]
[null,"Active Ingredient(s):"]
[null,"Optional Records"]
[null,"Additive:"]
[null,"Nozzle:"]
[null,"Wind:"]
[null,"Rate:"]
[null,"GPA:"]
[null,"            = categories only required for Federal Records"]
[null,"Other/Notes:"]

{"sheet":"Record_34","index":39,"n_rows":20,"n_cols":11,"rows_kept":20,"cut":false,"hidden":true,"merged":[[3,10,10,11],[18,1,18,7],[2,2,2,3],[2,5,2,7],[0,1,0,7],[1,1,1,2],[1,3,1,7],[19,7,20,7],[19,2,20,2],[19,3,20,3],[19,4,20,4],[19,5,20,5],[19,6,20,6]]}
[null,"REQUIRED FEDERAL and WPS Pesticide application Records for an Individual Field"]
[null,"Field Name and Location:"]
[null,"Crop:",null,null,"Variety (opt.):"]
[null,"Applicator Name:",null,null,null,null,null,null,null,null,"Note: User may type directly in cells, if desired.  \r\nTo update 'Field Name and Location:', 'Crop:', or 'Variety (opt.):' go to the Field List page."]
[null,"Application Date:"]
[null,"Brand Name:"]
[null,"EPA reg Number:"]
[null,"Acres Treated:"]
[null,"Total Amount:"]
[null,"Application Time:"]
[null,"REI:"]
[null,"Active Ingredient(s):"]
[null,"Optional Records"]
[null,"Additive:"]
[null,"Nozzle:"]
[null,"Wind:"]
[null,"Rate:"]
[null,"GPA:"]
[null,"            = categories only required for Federal Records"]
[null,"Other/Notes:"]

{"sheet":"Record_35","index":40,"n_rows":20,"n_cols":11,"rows_kept":20,"cut":false,"hidden":true,"merged":[[3,10,10,11],[18,1,18,7],[2,2,2,3],[2,5,2,7],[0,1,0,7],[1,1,1,2],[1,3,1,7],[19,7,20,7],[19,2,20,2],[19,3,20,3],[19,4,20,4],[19,5,20,5],[19,6,20,6]]}
[null,"REQUIRED FEDERAL and WPS Pesticide application Records for an Individual Field"]
[null,"Field Name and Location:"]
[null,"Crop:",null,null,"Variety (opt.):"]
[null,"Applicator Name:",null,null,null,null,null,null,null,null,"Note: User may type directly in cells, if desired.  \r\nTo update 'Field Name and Location:', 'Crop:', or 'Variety (opt.):' go to the Field List page."]
[null,"Application Date:"]
[null,"Brand Name:"]
[null,"EPA reg Number:"]
[null,"Acres Treated:"]
[null,"Total Amount:"]
[null,"Application Time:"]
[null,"REI:"]
[null,"Active Ingredient(s):"]
[null,"Optional Records"]
[null,"Additive:"]
[null,"Nozzle:"]
[null,"Wind:"]
[null,"Rate:"]
[null,"GPA:"]
[null,"            = categories only required for Federal Records"]
[null,"Other/Notes:"]

{"sheet":"Record_36","index":41,"n_rows":20,"n_cols":11,"rows_kept":20,"cut":false,"hidden":true,"merged":[[3,10,10,11],[18,1,18,7],[2,2,2,3],[2,5,2,7],[0,1,0,7],[1,1,1,2],[1,3,1,7],[19,7,20,7],[19,2,20,2],[19,3,20,3],[19,4,20,4],[19,5,20,5],[19,6,20,6]]}
[null,"REQUIRED FEDERAL and WPS Pesticide application Records for an Individual Field"]
[null,"Field Name and Location:"]
[null,"Crop:",null,null,"Variety (opt.):"]
[null,"Applicator Name:",null,null,null,null,null,null,null,null,"Note: User may type directly in cells, if desired.  \r\nTo update 'Field Name and Location:', 'Crop:', or 'Variety (opt.):' go to the Field List page."]
[null,"Application Date:"]
[null,"Brand Name:"]
[null,"EPA reg Number:"]
[null,"Acres Treated:"]
[null,"Total Amount:"]
[null,"Application Time:"]
[null,"REI:"]
[null,"Active Ingredient(s):"]
[null,"Optional Records"]
[null,"Additive:"]
[null,"Nozzle:"]
[null,"Wind:"]
[null,"Rate:"]
[null,"GPA:"]
[null,"            = categories only required for Federal Records"]
[null,"Other/Notes:"]

{"sheet":"Record_37","index":42,"n_rows":20,"n_cols":11,"rows_kept":20,"cut":false,"hidden":true,"merged":[[3,10,10,11],[18,1,18,7],[2,2,2,3],[2,5,2,7],[0,1,0,7],[1,1,1,2],[1,3,1,7],[19,7,20,7],[19,2,20,2],[19,3,20,3],[19,4,20,4],[19,5,20,5],[19,6,20,6]]}
[null,"REQUIRED FEDERAL and WPS Pesticide application Records for an Individual Field"]
[null,"Field Name and Location:"]
[null,"Crop:",null,null,"Variety (opt.):"]
[null,"Applicator Name:",null,null,null,null,null,null,null,null,"Note: User may type directly in cells, if desired.  \r\nTo update 'Field Name and Location:', 'Crop:', or 'Variety (opt.):' go to the Field List page."]
[null,"Application Date:"]
[null,"Brand Name:"]
[null,"EPA reg Number:"]
[null,"Acres Treated:"]
[null,"Total Amount:"]
[null,"Application Time:"]
[null,"REI:"]
[null,"Active Ingredient(s):"]
[null,"Optional Records"]
[null,"Additive:"]
[null,"Nozzle:"]
[null,"Wind:"]
[null,"Rate:"]
[null,"GPA:"]
[null,"            = categories only required for Federal Records"]
[null,"Other/Notes:"]

{"sheet":"Record_38","index":43,"n_rows":20,"n_cols":11,"rows_kept":20,"cut":false,"hidden":true,"merged":[[3,10,10,11],[18,1,18,7],[2,2,2,3],[2,5,2,7],[0,1,0,7],[1,1,1,2],[1,3,1,7],[19,7,20,7],[19,2,20,2],[19,3,20,3],[19,4,20,4],[19,5,20,5],[19,6,20,6]]}
[null,"REQUIRED FEDERAL and WPS Pesticide application Records for an Individual Field"]
[null,"Field Name and Location:"]
[null,"Crop:",null,null,"Variety (opt.):"]
[null,"Applicator Name:",null,null,null,null,null,null,null,null,"Note: User may type directly in cells, if desired.  \r\nTo update 'Field Name and Location:', 'Crop:', or 'Variety (opt.):' go to the Field List page."]
[null,"Application Date:"]
[null,"Brand Name:"]
[null,"EPA reg Number:"]
[null,"Acres Treated:"]
[null,"Total Amount:"]
[null,"Application Time:"]
[null,"REI:"]
[null,"Active Ingredient(s):"]
[null,"Optional Records"]
[null,"Additive:"]
[null,"Nozzle:"]
[null,"Wind:"]
[null,"Rate:"]
[null,"GPA:"]
[null,"            = categories only required for Federal Records"]
[null,"Other/Notes:"]

{"sheet":"Record_39","index":44,"n_rows":20,"n_cols":11,"rows_kept":20,"cut":false,"hidden":true,"merged":[[3,10,10,11],[18,1,18,7],[2,2,2,3],[2,5,2,7],[0,1,0,7],[1,1,1,2],[1,3,1,7],[19,7,20,7],[19,2,20,2],[19,3,20,3],[19,4,20,4],[19,5,20,5],[19,6,20,6]]}
[null,"REQUIRED FEDERAL and WPS Pesticide application Records for an Individual Field"]
[null,"Field Name and Location:"]
[null,"Crop:",null,null,"Variety (opt.):"]
[null,"Applicator Name:",null,null,null,null,null,null,null,null,"Note: User may type directly in cells, if desired.  \r\nTo update 'Field Name and Location:', 'Crop:', or 'Variety (opt.):' go to the Field List page."]
[null,"Application Date:"]
[null,"Brand Name:"]
[null,"EPA reg Number:"]
[null,"Acres Treated:"]
[null,"Total Amount:"]
[null,"Application Time:"]
[null,"REI:"]
[null,"Active Ingredient(s):"]
[null,"Optional Records"]
[null,"Additive:"]
[null,"Nozzle:"]
[null,"Wind:"]
[null,"Rate:"]
[null,"GPA:"]
[null,"            = categories only required for Federal Records"]
[null,"Other/Notes:"]

{"sheet":"Record_40","index":45,"n_rows":20,"n_cols":11,"rows_kept":20,"cut":false,"hidden":true,"merged":[[3,10,10,11],[18,1,18,7],[2,2,2,3],[2,5,2,7],[0,1,0,7],[1,1,1,2],[1,3,1,7],[19,7,20,7],[19,2,20,2],[19,3,20,3],[19,4,20,4],[19,5,20,5],[19,6,20,6]]}
[null,"REQUIRED FEDERAL and WPS Pesticide application Records for an Individual Field"]
[null,"Field Name and Location:"]
[null,"Crop:",null,null,"Variety (opt.):"]
[null,"Applicator Name:",null,null,null,null,null,null,null,null,"Note: User may type directly in cells, if desired.  \r\nTo update 'Field Name and Location:', 'Crop:', or 'Variety (opt.):' go to the Field List page."]
[null,"Application Date:"]
[null,"Brand Name:"]
[null,"EPA reg Number:"]
[null,"Acres Treated:"]
[null,"Total Amount:"]
[null,"Application Time:"]
[null,"REI:"]
[null,"Active Ingredient(s):"]
[null,"Optional Records"]
[null,"Additive:"]
[null,"Nozzle:"]
[null,"Wind:"]
[null,"Rate:"]
[null,"GPA:"]
[null,"            = categories only required for Federal Records"]
[null,"Other/Notes:"]

{"sheet":"Record_41","index":46,"n_rows":20,"n_cols":11,"rows_kept":20,"cut":false,"hidden":true,"merged":[[3,10,10,11],[18,1,18,7],[2,2,2,3],[2,5,2,7],[0,1,0,7],[1,1,1,2],[1,3,1,7],[19,7,20,7],[19,2,20,2],[19,3,20,3],[19,4,20,4],[19,5,20,5],[19,6,20,6]]}
[null,"REQUIRED FEDERAL and WPS Pesticide application Records for an Individual Field"]
[null,"Field Name and Location:"]
[null,"Crop:",null,null,"Variety (opt.):"]
[null,"Applicator Name:",null,null,null,null,null,null,null,null,"Note: User may type directly in cells, if desired.  \r\nTo update 'Field Name and Location:', 'Crop:', or 'Variety (opt.):' go to the Field List page."]
[null,"Application Date:"]
[null,"Brand Name:"]
[null,"EPA reg Number:"]
[null,"Acres Treated:"]
[null,"Total Amount:"]
[null,"Application Time:"]
[null,"REI:"]
[null,"Active Ingredient(s):"]
[null,"Optional Records"]
[null,"Additive:"]
[null,"Nozzle:"]
[null,"Wind:"]
[null,"Rate:"]
[null,"GPA:"]
[null,"            = categories only required for Federal Records"]
[null,"Other/Notes:"]

{"sheet":"Record_42","index":47,"n_rows":20,"n_cols":11,"rows_kept":20,"cut":false,"hidden":true,"merged":[[3,10,10,11],[18,1,18,7],[2,2,2,3],[2,5,2,7],[0,1,0,7],[1,1,1,2],[1,3,1,7],[19,7,20,7],[19,2,20,2],[19,3,20,3],[19,4,20,4],[19,5,20,5],[19,6,20,6]]}
[null,"REQUIRED FEDERAL and WPS Pesticide application Records for an Individual Field"]
[null,"Field Name and Location:"]
[null,"Crop:",null,null,"Variety (opt.):"]
[null,"Applicator Name:",null,null,null,null,null,null,null,null,"Note: User may type directly in cells, if desired.  \r\nTo update 'Field Name and Location:', 'Crop:', or 'Variety (opt.):' go to the Field List page."]
[null,"Application Date:"]
[null,"Brand Name:"]
[null,"EPA reg Number:"]
[null,"Acres Treated:"]
[null,"Total Amount:"]
[null,"Application Time:"]
[null,"REI:"]
[null,"Active Ingredient(s):"]
[null,"Optional Records"]
[null,"Additive:"]
[null,"Nozzle:"]
[null,"Wind:"]
[null,"Rate:"]
[null,"GPA:"]
[null,"            = categories only required for Federal Records"]
[null,"Other/Notes:"]

{"sheet":"Record_43","index":48,"n_rows":20,"n_cols":11,"rows_kept":20,"cut":false,"hidden":true,"merged":[[3,10,10,11],[18,1,18,7],[2,2,2,3],[2,5,2,7],[0,1,0,7],[1,1,1,2],[1,3,1,7],[19,7,20,7],[19,2,20,2],[19,3,20,3],[19,4,20,4],[19,5,20,5],[19,6,20,6]]}
[null,"REQUIRED FEDERAL and WPS Pesticide application Records for an Individual Field"]
[null,"Field Name and Location:"]
[null,"Crop:",null,null,"Variety (opt.):"]
[null,"Applicator Name:",null,null,null,null,null,null,null,null,"Note: User may type directly in cells, if desired.  \r\nTo update 'Field Name and Location:', 'Crop:', or 'Variety (opt.):' go to the Field List page."]
[null,"Application Date:"]
[null,"Brand Name:"]
[null,"EPA reg Number:"]
[null,"Acres Treated:"]
[null,"Total Amount:"]
[null,"Application Time:"]
[null,"REI:"]
[null,"Active Ingredient(s):"]
[null,"Optional Records"]
[null,"Additive:"]
[null,"Nozzle:"]
[null,"Wind:"]
[null,"Rate:"]
[null,"GPA:"]
[null,"            = categories only required for Federal Records"]
[null,"Other/Notes:"]

{"sheet":"Record_44","index":49,"n_rows":20,"n_cols":11,"rows_kept":20,"cut":false,"hidden":true,"merged":[[3,10,10,11],[18,1,18,7],[2,2,2,3],[2,5,2,7],[0,1,0,7],[1,1,1,2],[1,3,1,7],[19,7,20,7],[19,2,20,2],[19,3,20,3],[19,4,20,4],[19,5,20,5],[19,6,20,6]]}
[null,"REQUIRED FEDERAL and WPS Pesticide application Records for an Individual Field"]
[null,"Field Name and Location:"]
[null,"Crop:",null,null,"Variety (opt.):"]
[null,"Applicator Name:",null,null,null,null,null,null,null,null,"Note: User may type directly in cells, if desired.  \r\nTo update 'Field Name and Location:', 'Crop:', or 'Variety (opt.):' go to the Field List page."]
[null,"Application Date:"]
[null,"Brand Name:"]
[null,"EPA reg Number:"]
[null,"Acres Treated:"]
[null,"Total Amount:"]
[null,"Application Time:"]
[null,"REI:"]
[null,"Active Ingredient(s):"]
[null,"Optional Records"]
[null,"Additive:"]
[null,"Nozzle:"]
[null,"Wind:"]
[null,"Rate:"]
[null,"GPA:"]
[null,"            = categories only required for Federal Records"]
[null,"Other/Notes:"]

{"sheet":"Record_45","index":50,"n_rows":20,"n_cols":11,"rows_kept":20,"cut":false,"hidden":true,"merged":[[3,10,10,11],[18,1,18,7],[2,2,2,3],[2,5,2,7],[0,1,0,7],[1,1,1,2],[1,3,1,7],[19,7,20,7],[19,2,20,2],[19,3,20,3],[19,4,20,4],[19,5,20,5],[19,6,20,6]]}
[null,"REQUIRED FEDERAL and WPS Pesticide application Records for an Individual Field"]
[null,"Field Name and Location:"]
[null,"Crop:",null,null,"Variety (opt.):"]
[null,"Applicator Name:",null,null,null,null,null,null,null,null,"Note: User may type directly in cells, if desired.  \r\nTo update 'Field Name and Location:', 'Crop:', or 'Variety (opt.):' go to the Field List page."]
[null,"Application Date:"]
[null,"Brand Name:"]
[null,"EPA reg Number:"]
[null,"Acres Treated:"]
[null,"Total Amount:"]
[null,"Application Time:"]
[null,"REI:"]
[null,"Active Ingredient(s):"]
[null,"Optional Records"]
[null,"Additive:"]
[null,"Nozzle:"]
[null,"Wind:"]
[null,"Rate:"]
[null,"GPA:"]
[null,"            = categories only required for Federal Records"]
[null,"Other/Notes:"]

{"sheet":"Record_46","index":51,"n_rows":20,"n_cols":11,"rows_kept":20,"cut":false,"hidden":true,"merged":[[3,10,10,11],[18,1,18,7],[2,2,2,3],[2,5,2,7],[0,1,0,7],[1,1,1,2],[1,3,1,7],[19,7,20,7],[19,2,20,2],[19,3,20,3],[19,4,20,4],[19,5,20,5],[19,6,20,6]]}
[null,"REQUIRED FEDERAL and WPS Pesticide application Records for an Individual Field"]
[null,"Field Name and Location:"]
[null,"Crop:",null,null,"Variety (opt.):"]
[null,"Applicator Name:",null,null,null,null,null,null,null,null,"Note: User may type directly in cells, if desired.  \r\nTo update 'Field Name and Location:', 'Crop:', or 'Variety (opt.):' go to the Field List page."]
[null,"Application Date:"]
[null,"Brand Name:"]
[null,"EPA reg Number:"]
[null,"Acres Treated:"]
[null,"Total Amount:"]
[null,"Application Time:"]
[null,"REI:"]
[null,"Active Ingredient(s):"]
[null,"Optional Records"]
[null,"Additive:"]
[null,"Nozzle:"]
[null,"Wind:"]
[null,"Rate:"]
[null,"GPA:"]
[null,"            = categories only required for Federal Records"]
[null,"Other/Notes:"]

{"sheet":"Record_47","index":52,"n_rows":20,"n_cols":11,"rows_kept":20,"cut":false,"hidden":true,"merged":[[3,10,10,11],[18,1,18,7],[2,2,2,3],[2,5,2,7],[0,1,0,7],[1,1,1,2],[1,3,1,7],[19,7,20,7],[19,2,20,2],[19,3,20,3],[19,4,20,4],[19,5,20,5],[19,6,20,6]]}
[null,"REQUIRED FEDERAL and WPS Pesticide application Records for an Individual Field"]
[null,"Field Name and Location:"]
[null,"Crop:",null,null,"Variety (opt.):"]
[null,"Applicator Name:",null,null,null,null,null,null,null,null,"Note: User may type directly in cells, if desired.  \r\nTo update 'Field Name and Location:', 'Crop:', or 'Variety (opt.):' go to the Field List page."]
[null,"Application Date:"]
[null,"Brand Name:"]
[null,"EPA reg Number:"]
[null,"Acres Treated:"]
[null,"Total Amount:"]
[null,"Application Time:"]
[null,"REI:"]
[null,"Active Ingredient(s):"]
[null,"Optional Records"]
[null,"Additive:"]
[null,"Nozzle:"]
[null,"Wind:"]
[null,"Rate:"]
[null,"GPA:"]
[null,"            = categories only required for Federal Records"]
[null,"Other/Notes:"]

{"sheet":"Record_48","index":53,"n_rows":20,"n_cols":11,"rows_kept":20,"cut":false,"hidden":true,"merged":[[3,10,10,11],[18,1,18,7],[2,2,2,3],[2,5,2,7],[0,1,0,7],[1,1,1,2],[1,3,1,7],[19,7,20,7],[19,2,20,2],[19,3,20,3],[19,4,20,4],[19,5,20,5],[19,6,20,6]]}
[null,"REQUIRED FEDERAL and WPS Pesticide application Records for an Individual Field"]
[null,"Field Name and Location:"]
[null,"Crop:",null,null,"Variety (opt.):"]
[null,"Applicator Name:",null,null,null,null,null,null,null,null,"Note: User may type directly in cells, if desired.  \r\nTo update 'Field Name and Location:', 'Crop:', or 'Variety (opt.):' go to the Field List page."]
[null,"Application Date:"]
[null,"Brand Name:"]
[null,"EPA reg Number:"]
[null,"Acres Treated:"]
[null,"Total Amount:"]
[null,"Application Time:"]
[null,"REI:"]
[null,"Active Ingredient(s):"]
[null,"Optional Records"]
[null,"Additive:"]
[null,"Nozzle:"]
[null,"Wind:"]
[null,"Rate:"]
[null,"GPA:"]
[null,"            = categories only required for Federal Records"]
[null,"Other/Notes:"]

{"sheet":"Record_49","index":54,"n_rows":20,"n_cols":11,"rows_kept":20,"cut":false,"hidden":true,"merged":[[3,10,10,11],[18,1,18,7],[2,2,2,3],[2,5,2,7],[0,1,0,7],[1,1,1,2],[1,3,1,7],[19,7,20,7],[19,2,20,2],[19,3,20,3],[19,4,20,4],[19,5,20,5],[19,6,20,6]]}
[null,"REQUIRED FEDERAL and WPS Pesticide application Records for an Individual Field"]
[null,"Field Name and Location:"]
[null,"Crop:",null,null,"Variety (opt.):"]
[null,"Applicator Name:",null,null,null,null,null,null,null,null,"Note: User may type directly in cells, if desired.  \r\nTo update 'Field Name and Location:', 'Crop:', or 'Variety (opt.):' go to the Field List page."]
[null,"Application Date:"]
[null,"Brand Name:"]
[null,"EPA reg Number:"]
[null,"Acres Treated:"]
[null,"Total Amount:"]
[null,"Application Time:"]
[null,"REI:"]
[null,"Active Ingredient(s):"]
[null,"Optional Records"]
[null,"Additive:"]
[null,"Nozzle:"]
[null,"Wind:"]
[null,"Rate:"]
[null,"GPA:"]
[null,"            = categories only required for Federal Records"]
[null,"Other/Notes:"]

{"sheet":"Record_50","index":55,"n_rows":20,"n_cols":11,"rows_kept":20,"cut":false,"hidden":true,"merged":[[3,10,10,11],[18,1,18,7],[2,2,2,3],[2,5,2,7],[0,1,0,7],[1,1,1,2],[1,3,1,7],[19,7,20,7],[19,2,20,2],[19,3,20,3],[19,4,20,4],[19,5,20,5],[19,6,20,6]]}
[null,"REQUIRED FEDERAL and WPS Pesticide application Records for an Individual Field"]
[null,"Field Name and Location:"]
[null,"Crop:",null,null,"Variety (opt.):"]
[null,"Applicator Name:",null,null,null,null,null,null,null,null,"Note: User may type directly in cells, if desired.  \r\nTo update 'Field Name and Location:', 'Crop:', or 'Variety (opt.):' go to the Field List page."]
[null,"Application Date:"]
[null,"Brand Name:"]
[null,"EPA reg Number:"]
[null,"Acres Treated:"]
[null,"Total Amount:"]
[null,"Application Time:"]
[null,"REI:"]
[null,"Active Ingredient(s):"]
[null,"Optional Records"]
[null,"Additive:"]
[null,"Nozzle:"]
[null,"Wind:"]
[null,"Rate:"]
[null,"GPA:"]
[null,"            = categories only required for Federal Records"]
[null,"Other/Notes:"]

{"sheet":"Conversions","index":56,"n_rows":75,"n_cols":12,"rows_kept":75,"cut":false,"hidden":false,"merged":[[15,10,15,12],[19,11,19,12],[5,8,6,9],[5,10,5,12],[6,10,6,12],[8,10,8,13],[9,10,9,13],[11,10,11,13],[12,10,12,13],[14,10,14,12],[8,8,9,9],[11,8,12,9],[14,8,15,9],[17,8,18,10],[19,8,20,10],[20,11,20,12],[26,8,27,10],[29,8,30,9],[22,9,22,10],[23,9,23,10],[29,10,29,11],[30,10,30,11],[25,7,25,13],[22,8,23,8]]}
["Type the amount to convert in column A and press enter."]
[]
["Amount","Current Unit",null,"Amount ","Desired Unit",null,null,"Useful Formulas"]
["LENGTH"]
[null,"miles","=",{"$f":"A5*1.609","v":0},"km",null,null,"To determine the amount of active ingredient (ai) needed:"]
[null,"yards","=",{"$f":"A6*0.9144","v":0},"meters",null,null,null,"gallons or pounds =",null,"acres to spray X lb ai/A"]
[null,"feet","=",{"$f":"A7*0.3048","v":0},"meters",null,null,null,null,null,"lb ai/gal or ai/lb"]
[null,"inches","=",{"$f":"A8*2.54","v":0},"cm",null,null,"To determine the size of pump needed to apply gallons/acre desired:"]
[null,"km","=",{"$f":"A9*0.6214","v":0},"miles",null,null,null,"pump capacity =",null,"gal/A desired X boom width (ft) X mph"]
[null,"meters","=",{"$f":"A10*1.094","v":0},"yards",null,null,null,null,null,495]
[null,"meters","=",{"$f":"A11*3.281","v":0},"feet",null,null,"To determine the nozzle capacity in gal./min. at a given rate/acre and mph:"]
[null,"cm","=",{"$f":"A12*0.3937","v":0},"inches",null,null,null,"nozzle capacity = ",null,"gal/A X nozzle spacing (in) X mph"]
["AREA",null,null,null,null,null,null,null,null,null,5940]
[null,"acres","=",{"$f":"A14*0.4047","v":0},"hectares",null,null,"To determine the acres/hour sprayed:"]
[null,"acres","=",{"$f":"A15*43560","v":0},"square feet",null,null,null,"acres/hour = ",null,"swath width (in) X speed (mph)"]
[null,"hectares","=",{"$f":"A16*2.471","v":0},"acres",null,null,null,null,null,100]
[null,"square feet","=",{"$f":"A17/43560","v":0},"acres",null,null,"To determine the amount of purchased material to use:"]
[null,"square miles","=",{"$f":"A18*2.59","v":0},"square km",null,null,null,"gallons liquid required/acre =",null,null,"lb ai/A"]
[null,"square feet","=",{"$f":"A19*0.0929","v":0},"square meters",null,null,null,null,null,null,"lb ai/gal"]
[null,"square km","=",{"$f":"A20*0.3861","v":0},"square miles",null,null,null,"pounds powder required/acre = ",null,null,"lb ai/A"]
[null,"square meters","=",{"$f":"A21*10.76","v":0},"square feet",null,null,null,null,null,null,"% ai in formulation"]
["VOLUME",null,null,null,null,null,null,"To determine the rate of speed in mph:"]
[null,"cubic feet","=",{"$f":"A23*7.48","v":0},"gallons",null,null,null,"mph =","distance travelled (ft)"]
[null,"cubic feet","=",{"$f":"A24*0.0283","v":0},"cubic meters",null,null,null,null,"1.47 X time (sec)"]
[null,"gallons","=",{"$f":"A25*3785","v":0},"milliliters",null,null,"To determine the nozzle flow rate:",null,null,null,"Time the seconds necessary"]
[null,"gallons","=",{"$f":"A26*3.785","v":0},"liters",null,null,"to fill a pint jar from a nozzle.  Divide the number of seconds into 7.5."]
[null,"gallons","=",{"$f":"A27*128","v":0},"fluid ounces",null,null,null,"gallons/minute/nozzle =",null,null,7.5]
[null,"gallons","=",{"$f":"A28*231","v":0},"cubic inches",null,null,null,null,null,null,"seconds"]
[null,"gallons","=",{"$f":"A29/7.48","v":0},"cubic feet",null,null,"To determine the acreage sprayed per hour:"]
[null,"gallons","=",{"$f":"A30*8.35","v":0},"lbs of water",null,null,null,"acres sprayed/hour =",null,"boom width (ft) X mph"]
[null,"gallons","=",{"$f":"A31*4","v":0},"quarts",null,null,null,null,null,12]
[null,"gallons","=",{"$f":"A32*8","v":0},"pints"]
[null,"gallons","=",{"$f":"A33*16","v":0},"cups"]
[null,"quarts","=",{"$f":"A34*32","v":0},"ounces"]
[null,"quarts","=",{"$f":"A35*2","v":0},"pints"]
[null,"quarts","=",{"$f":"A36*946","v":0},"mL"]
[null,"quarts","=",{"$f":"A37*0.9463","v":0},"liters"]
[null,"pints","=",{"$f":"A38*16","v":0},"fluid ounces"]
[null,"pints","=",{"$f":"A39*0.4732","v":0},"liters"]
[null,"pints","=",{"$f":"A40*473.2","v":0},"mL"]
[null,"ounces","=",{"$f":"A41*28.35","v":0},"grams"]
[null,"oz(fl)","=",{"$f":"A42*29.57","v":0},"mL"]
[null,"acre inches","=",{"$f":"A43*27154","v":0},"gallons"]
[null,"cubic meter","=",{"$f":"A44*35.31","v":0},"cubic feet"]
[null,"liters","=",{"$f":"A45*0.2642","v":0},"gallons"]
[null,"liters","=",{"$f":"A46*1.057","v":0},"quarts"]
[null,"liters","=",{"$f":"A47*2.113","v":0},"pints"]
[null,"mL","=",{"$f":"A48*0.0021","v":0},"pints"]
[null,"mL","=",{"$f":"A49*0.0338","v":0},"oz(fl)"]
["WEIGHT"]
[null,"metric tons","=",{"$f":"A51*1.1015","v":0},"tons"]
[null,"kilograms","=",{"$f":"A52*2.205","v":0},"pounds"]
[null,"grams","=",{"$f":"A53*0.0022","v":0},"pounds"]
[null,"grams","=",{"$f":"A54*0.0353","v":0},"ounces"]
[null,"tons","=",{"$f":"A55*0.9078","v":0},"metric tons"]
[null,"pounds","=",{"$f":"A56*0.4536","v":0},"kilograms"]
[null,"pounds","=",{"$f":"A57*454.59","v":0},"grams"]
[null,"ounces","=",{"$f":"A58*28.349","v":0},"grams"]
["WEIGHT PER AREA"]
[null,"kg/ha","=",{"$f":"A60*0.2048","v":0},"lb/A"]
[null,"L/ha","=",{"$f":"A61*0.1069","v":0},"gal/A"]
[null,"g/ha","=",{"$f":"A62*0.0143","v":0},"oz(dry)/A"]
[null,"mL/ha","=",{"$f":"A63*0.0137","v":0},"oz(fl)/A"]
[null,"lb/A","=",{"$f":"A64*1.1209","v":0},"kg/ha"]
[null,"gal/A","=",{"$f":"A65*9.3538","v":0},"L/ha"]
[null,"oz(dry)/A","=",{"$f":"A66*70.054","v":0},"g/ha"]
[null,"oz(fl)/A","=",{"$f":"A67*73.079","v":0},"mL/ha"]
["WEIGHT PER VOLUME"]
[null,"mL/L","=",{"$f":"A69*0.128","v":0},"oz(fl)/gal"]
[null,"g/L","=",{"$f":"A70*0.1335","v":0},"oz(dry)/gal"]
[null,"oz(dry)/gal","=",{"$f":"A71*7.4892","v":0},"g/L"]
[null,"oz(fl)/gal","=",{"$f":"A72*7.8125","v":0},"mL/L"]
["VELOCITY"]
[null,"mph","=",{"$f":"A74*88","v":0},"feet/min"]
[null,"feet/min","=",{"$f":"A75/88","v":0},"mph"]

{"sheet":"Sprayer Calibration","index":57,"n_rows":28,"n_cols":15,"rows_kept":28,"cut":false,"hidden":false,"merged":[]}
["Calibration of your spraying equipment is very important.  It should be done daily or whenever you change chemicals"]
["to insure application of the proper dosages.  Applying incorrect amounts may do more damage than good."]
[]
["Adjustable factors which determine calibration and affect application rate are: speed, pressure, and nozzle size and"]
["type, or a combination of the three.  Speed is the easiest and most common adjustment."]
[]
["Test several nozzles to ensure uniformity and replace any that have > 5% variation from the average of all nozzles."]
[]
["To begin calibration, first measure the distance between nozzles (in.).  Then determine speed at which sprayer will"]
["be traveling (mph)."]
[]
[]
["If gallons per acre and speed are known begin here."]
[]
[null,null,null,null,null,"nozzle spacing",12,"inches"]
[null,null,null,null,null,"gallons per acre",12]
[null,null,null,null,null,"speed",5,"mph"]
[null,null,null,null,null,null,null,null,null,null,null,"Speed conversion"]
[null,null,null,null,null,null,"Amount of water to catch in 30 seconds (per nozzle)",{"$f":"((((G15*G16*G17)/5940)*(128/60)*30))","v":7.7575757575757578},"ounces"]
[null,null,null,null,null,null,null,null,null,null,null,null,"distance traveled ",100,"feet"]
[null,null,null,null,null,null,null,null,null,null,null,null,"time",13.63,"seconds"]
["If speed is known begin here."]
[null,null,null,null,null,null,null,null,null,null,null,null,null,"Speed in mph",{"$f":"(N20/N21)*(3600/5280)","v":5.0023344227306072}]
[null,null,null,null,null,"nozzle spacing",null,"inches"]
[null,null,null,null,null,"speed",5,"mph"]
[null,null,null,null,null,"Amount of water caught in 30 seconds (per nozzle)",8,"ounces"]
[]
[null,null,null,null,null,null,"gallons per acre",{"$f":"((5940*(G26/30*60/128))/(G24*G25))","v":{"$error":"#DIV/0!"}}]

{"sheet":"Tips","index":58,"n_rows":42,"n_cols":2,"rows_kept":42,"cut":false,"hidden":false,"merged":[]}
[]
[null,"Tips for SAFE, LEGAL, PRODUCTIVE, and ECONOMICALLY EFFICIENT pesticide use:"]
[]
[1,"Read all label instructions prior to chemical mixing."]
[]
[2,"Follow label specifications for all pesticide applications."]
[]
[3,"Maintain application equipment in good working condition."]
[]
[4,"Calibrate equipment before each use to ensure proper rate is applied."]
[]
[5,"Follow the established re-entry time as stated on the label."]
[]
[6,"Avoid over-spray and drift, expecially when surface water or sensitive non-target species or crops are close to treated fields."]
[]
[7,"Avoid applying pesticides within 100 feet of wells and surface water."]
[]
[8,"Know what to do in case of accidental pesticide poisoning.  Keep emergency phone numbers handy and look to labels for emergency information."]
[]
[9,"Clean spray tanks and spray equipment at the application site."]
[]
[10,"Triple rinse or pressure rinse one-way pesticide containers immediately after emptying."]
[]
[11,"Puncture empty pesticide containers and dispose of according to label instructions."]
[]
[12,"Do not burn or dispose of containers on the farm."]
[]
[13,"Spot-spray and band herbicides, rather than broadcast, where appropriate."]
[]
[14,"Avoid repetitive use of the same pesticides, or pesticides of similar chemistry, to reduce the potential for pesticide resistance development in surviving pests."]
[]
[15,"Minimize drift by not spraying on extremely hot and windy days."]
[]
[16,"Store pesticides in their original containers with intact, visible and legible labels."]
[]
[17,"Follow all label directions for storing and mixing of pesticides."]
[]
[18,"Mix and load at the application site (in the field) whenever possible."]
[]
[19,"Mix only the amount of pesticide that will be used for the current job."]
[]
[20,"Purchase the correct amount of product needed and return unopened containers for credit."]

{"sheet":"RUP Pesticide Products","index":59,"n_rows":542,"n_cols":8,"rows_kept":542,"cut":false,"hidden":false,"merged":[]}
["Product Name:","EPA reg no.","Active Ingredient(s)","REI","Regulatory type","Business Name","Product ID","Registor's ID"]
["(Select From List)"]
["***MY PRODUCT IS NOT LISTED***"]
["0.5% Strychnine Milo Pocket Gopher Bait For Use In Burrow Builders","56228-11-0","Strychnine",null,"Federal Restricted Use","USDA-APHIS-Wildlife Services",21703]
["67-33 Preplant Soil Fumigant","8622-13-0","Methyl bromide (NO INERT USE), Chloropicrin",null,"Federal Restricted Use","ICL-IP America, Inc.",16020]
["75-25 Preplant Soil Fumigant","8622-15-0","Methyl bromide (NO INERT USE), Chloropicrin",null,"Federal Restricted Use","ICL-IP America, Inc.",16019]
["98-2 Contains 2% Chloropicrin Preplant Soil Fumigant","8622-12-0","Methyl bromide (NO INERT USE), Chloropicrin",null,"Federal Restricted Use","ICL-IP America, Inc.",16022]
["Abamectin E-AG 0.15 EC Insecticide","79676-58-0","Abamectin",null,"Federal Restricted Use","Gro-Pro LLC dba Etigra",48537]
["ABBA 0.15 EC","66222-139-0","Abamectin",null,"Federal Restricted Use","Makhteshim-Agan of North America Inc.",49103]
["ABBA O.15 EC","72167-43-66222",null,null,"Federal Restricted Use","Makhteshim-Agan of North America Inc.",46415]
["Adjourn","352-515-66222","Esfenvalerate",null,"Federal Restricted Use","Makhteshim-Agan of North America Inc.",46906]
["Aftereffect","10088-118-11547","Bromacil, lithium salt",null,"State Restricted Use","Share Corporation",51284]
["Agri-Flex Miticide/insecticide","100-1350-0","Thiamethoxam, Abamectin",null,"Federal Restricted Use","Syngenta Crop Protection, Inc.",52614]
["agriliance Pounce 3.2 EC Insecticide","279-3014-1381","Permethrin, mixed cis,trans",null,"Federal Restricted Use","Winfield Solutions, LLC",39106]
["Agri-Mek SC Miticide/Insecticide","100-1351-0","Abamectin",null,"Federal Restricted Use","Syngenta Crop Protection, Inc.",52613]
["AgriSolutions Arctic 3.2 EC Insecticide","1381-187-0","Permethrin, mixed cis,trans",null,"Federal Restricted Use","Winfield Solutions, LLC",44255]
["AgriSolutions Atrazine 4L","1381-158-0","Atrazine",null,"Federal Restricted Use","Winfield Solutions, LLC",37474]
["AgriSolutions Charger Max  ATZ Lite","1381-208-0","Atrazine, S-Metolachlor",null,"Federal Restricted Use","Winfield Solutions, LLC",47869]
["Agrisolutions Commit ATZ Lite Herbicide","7969-200-1381","Atrazine, dimethenamide-P",null,"Federal Restricted Use","Winfield Solutions, LLC",52242]
["AgriSolutions Confidence Extra 5.6L","524-485-0","Atrazine, Acetochlor",null,"Federal Restricted Use","Monsanto Company",41262]
["AgriSolutions Confidence Xtra Herbicide","524-480-0","Atrazine, Acetochlor",null,"Federal Restricted Use","Monsanto Company",40971]
["Agrisolutions Grizzly Z","1381-211-0","lambda-Cyhalothrin",null,"Federal Restricted Use","Winfield Solutions, LLC",49733]
["AgriSolutions Pramitol 25E Herbicide","66222-22-9779","Prometon",null,"State Restricted Use","Winfield Solutions, LLC",37490]
["AgriSolutions Sterling Plus","51036-307-9779","Atrazine, Dicamba, potassium salt",null,"Federal Restricted Use","Winfield Solutions, LLC",37496]
["Agrisolutions Sterling Plus","66330-286-9779","Atrazine, Dicamba, potassium salt",null,"Federal Restricted Use","Winfield Solutions, LLC",47460]
["AgriSolutions Taiga Z Insecticide","100-1112-1381","lambda-Cyhalothrin",null,"Federal Restricted Use","Winfield Solutions, LLC",44917]
["Agrisolutions Total Pelleted Herbicide For Control of Weeds in Non-Crop Areas","33560-43-9779","Sodium metaborate, Bromacil, Sodium chlorate",null,"State Restricted Use","Winfield Solutions, LLC",37499]
["Agrisolutions Tundra EC","1381-196-0","Bifenthrin",null,"Federal Restricted Use","Winfield Solutions, LLC",47451]
["AgriSolutions Tundra EC Insecticide","5481-517-1381","Bifenthrin",null,"Federal Restricted Use","Winfield Solutions, LLC",52302]
["AgriSolutions Tundra Insecticide","70506-57-1381","Bifenthrin",null,"Federal Restricted Use","Winfield Solutions, LLC",44918]
["Agrisolutions Tundra Supreme","1381-243-0","Chlorpyrifos, Bifenthrin",null,"Federal Restricted Use","Winfield Solutions, LLC",53418]
["AgriSolutions Yuma 4E","62719-220-1381","Chlorpyrifos",null,"Federal Restricted Use","Winfield Solutions, LLC",43461]
["Allectus GC Granular Insecticide","432-1416-0","Bifenthrin, Imidacloprid",null,"Federal Restricted Use","Bayer Environmental Science, A Business Group of Bayer CropScience LP",44334]
["Allectus GC SC","432-1421-0","Bifenthrin, Imidacloprid",null,"Federal Restricted Use","Bayer Environmental Science, A Business Group of Bayer CropScience LP",44948]
["Alligare Diuron 80 DF","81927-12-0","Diuron ",null,"State Restricted Use","Alligare LLC",49501]
["Alligare Mojave 70 EG","81927-25-0","Diuron, Imazapyr",null,"State Restricted Use","Alligare LLC",50521]
["Alligare Picloram 22K","81927-18-0","Picloram-potassium",null,"Federal Restricted Use","Alligare LLC",49715]
["Alligare Picloram K","81927-17-0","Picloram-potassium",null,"Federal Restricted Use","Alligare LLC",49716]
["Alligare Picloram+D","81927-16-0","Picloram, triisopropanolamine salt, Triisopropanolamine 2,4-dichlorophenoxyacetate",null,"Federal Restricted Use","Alligare LLC",49502]
["Aloft GC G","66330-367-0","Clothianidin, Bifenthrin",null,"Federal Restricted Use","Arysta LifeScience North America, LLC",48984]
["Aloft GC SC","66330-365-0","Clothianidin, Bifenthrin",null,"Federal Restricted Use","Arysta LifeScience North America, LLC",48987]
["Ambush 25W Insecticide Wettable Powder","5481-502-0","Permethrin, mixed cis,trans",null,"Federal Restricted Use","Amvac Chemical Corporation",39601]
["Ambush Insecticide","5481-549-0","Permethrin, mixed cis,trans",null,"Federal Restricted Use","Amvac Chemical Corporation",48395]
["AMVAC  Aztec 4.67 G SmartBox System","264-811-5481","Cyfluthrin, Phostebupirim",null,"Federal Restricted Use","Amvac Chemical Corporation",42541]
["Amvac Fortress 2.5G granular insecticide","5481-494-0","Chlorethoxyfos",null,"Federal Restricted Use","Amvac Chemical Corporation",38831]
["Amvac Fortress 5G granular insecticide","5481-493-0","Chlorethoxyfos",null,"Federal Restricted Use","Amvac Chemical Corporation",38832]
["Atera GC 2+1 SC Insecticide","228-557-0","Bifenthrin, Imidacloprid",null,"Federal Restricted Use","Nufarm Americas Inc.",49316]
["Athena Insecticide/Miticide","279-3356-0","Abamectin, Bifenthrin",null,"Federal Restricted Use","FMC Corporation Agricultural Products Group",52956]
["Atrazine 4L Herbicide","34704-69-0","Atrazine",null,"Federal Restricted Use","Makhteshim-Agan of North America Inc.",39305]
["Atrazine 4L Herbicide","5905-470-0","Atrazine",null,"Federal Restricted Use","Helena Chemical Company",31849]
["Atrazine 4L Herbicide","66222-36-0","Atrazine",null,"Federal Restricted Use","Loveland Products, Inc.",43386]
["Atrazine 90 WDG Herbicide","34704-622-0","Atrazine",null,"Federal Restricted Use","Loveland Products, Inc.",43706]
["Atrazine 90DF","66222-37-0","Atrazine",null,"Federal Restricted Use","Makhteshim-Agan of North America Inc.",40495]
["Atrazine 90DF","9779-253-0","Atrazine",null,"Federal Restricted Use","Winfield Solutions, LLC",37475]
["Authority MTZ Herbicide","279-3326-0","Metribuzin, Sulfentrazone",null,"Federal Restricted Use","FMC Corporation Agricultural Products Group",49793]
["Avex","83359-4-0","Methyl anthranilate ",null,"Federal Restricted Use","Impec, Inc.",51452]
["Avicta 500 FS","100-1201-0","Atrazine, S-Metolachlor",null,"Federal Restricted Use","Syngenta Crop Protection, Inc.",52994]
["Avicta Duo 250 Corn","100-1353-0","Thiamethoxam, Abamectin",null,"Federal Restricted Use","Syngenta Crop Protection, Inc.",52036]
["Avicta Duo Corn","100-1321-0","Thiamethoxam, Abamectin",null,"Federal Restricted Use","Syngenta Crop Protection, Inc.",50691]
["Avitrol Corn Chops","11649-6-0","4-Aminopyridine",null,"Federal Restricted Use","Avitrol Corporation",283]
["Avitrol Double Strength Corn Chops","11649-5-0","4-Aminopyridine",null,"Federal Restricted Use","Avitrol Corporation",282]
["Avitrol Mixed Grains","11649-4-0","4-Aminopyridine",null,"Federal Restricted Use","Avitrol Corporation",281]
["Avitrol Whole Corn","11649-7-0","4-Aminopyridine",null,"Federal Restricted Use","Avitrol Corporation",284]
["Azinphosmethyl 50W Soluble","66330-233-0","Azinphos-Methyl",null,"Federal Restricted Use","Arysta LifeScience North America, LLC",47295]
["Aztec 2.1% Granular Insecticide","264-813-0","Cyfluthrin, Phostebupirim",null,"Federal Restricted Use","Bayer CropScience LP",42165]
["Baker Hughes Magnacide H Herbicide","10707-9-0","Acrolein",null,"Federal Restricted Use","Baker Petrolite Corporation",31974]
["Baker Hughes/Baker Petrolite Magnacide B Microbiocide","10707-10-0","Acrolein",null,"Federal Restricted Use","Baker Petrolite Corporation",34162]
["Balance Flexx Herbicide (SLN: CO-090001)","264-1067-0","Isoxaflutole",null,"Federal Restricted Use","Bayer CropScience LP",50689]
["Balance Pro Herbicide  SLN #:  CO-030003","264-600-0","Isoxaflutole",null,"Federal Restricted Use","Bayer CropScience LP",42047]
["Ballistic","534-98-0","Atrazine, Metolachlor",null,"Federal Restricted Use","Growmark, Inc.",50285]
["Banvel-k + Atrazine","66330-286-0","Atrazine, Dicamba, potassium salt",null,"Federal Restricted Use","Arysta LifeScience North America, LLC",47297]
["Bare Ground 21 Pelleted Herbicide","33560-43-0","Sodium metaborate, Bromacil, Diuron, Sodium chlorate",null,"State Restricted Use","Pro-Serve, Inc.",48323]
["BareSpot Monobor Chlorate","33560-48-0","Sodium metaborate, Sodium chlorate",null,"State Restricted Use","Pro-Serve, Inc.",45169]
["BareSpot Ureabor Granular, Non-Selective, Residual Herbicide","33560-47-0","Sodium metaborate (NaBO2), Bromacil, Sodium chlorate",null,"State Restricted Use","Pro-Serve, Inc.",45170]
["Barren","10088-68-68562","Bromacil, Acetic acid, (2,4-dichlorophenoxy)-, 2-ethylhexyl ester",null,"State Restricted Use","Total Solutions",49814]
["BASF G-Max Lite Herbicide","7969-200-0","Atrazine, dimethenamide-P",null,"Federal Restricted Use","BASF Corporation",39687]
["BASF Guardsman Max herbicide","7969-192-0","Atrazine, dimethenamide-P",null,"Federal Restricted Use","BASF Corporation",37535]
["BASF Regent 4SC Insecticide","7969-207-0","Fipronil",null,"Federal Restricted Use","BASF Corporation",41993]
["BASF Sahara DG Herbicide","241-372-0","Diuron, Imazapyr",null,"State Restricted Use","BASF Corporation",36507]
["Battalion 0.2 EC","264-1007-66330","Deltamethrin",null,"Federal Restricted Use","Arysta LifeScience North America, LLC",45866]
["Battalion 1.5EC","264-1011-66330","Deltamethrin",null,"Federal Restricted Use","Arysta LifeScience North America, LLC",47977]
["Bayer DeltaGard GC 5 SC Insecticide","432-835-0","Deltamethrin",null,"Federal Restricted Use","Bayer Environmental Science, A Business Group of Bayer CropScience LP",41016]
["Bayer DeltaGard GC Granular Insecticide","432-837-0","Deltamethrin",null,"Federal Restricted Use","Bayer Environmental Science, A Business Group of Bayer CropScience LP",41019]
["Baythroid XL","264-840-0","beta-Cyfluthrin",null,"Federal Restricted Use","Bayer CropScience LP",46231]
["Bicep II Magnum FC Herbicide","100-817-0","Atrazine, S-Metolachlor",null,"Federal Restricted Use","Syngenta Crop Protection, Inc.",41716]
["Bifen 25% EC","83520-4-0","Bifenthrin",null,"Federal Restricted Use","AXSS USA, Inc",51422]
["Bifenthrin 2EC","279-3069-5905","Bifenthrin",null,"Federal Restricted Use","Helena Chemical Company",43146]
["Bifenthrin 2EC AG","66330-336-0","Bifenthrin",null,"Federal Restricted Use","Arysta LifeScience North America, LLC",47754]
["Bifenture EC","70506-57-0","Bifenthrin",null,"Federal Restricted Use","United Phosphorus, Inc.",45729]
["Bisect G","34704-957-0","Bifenthrin",null,"Federal Restricted Use","Loveland Products, Inc.",47605]
["Border Insecticide","100-1066-72113","lambda-Cyhalothrin",null,"Federal Restricted Use","Speckoz, Inc.",45546]
["Brawl II ATZ Herbicide","100-817-55467","Atrazine, S-Metolachlor",null,"Federal Restricted Use","Tenkoz, Inc.",44447]
["Brigade 2 EC Insecticide/Miticide SLN CO-090003","279-3313-0","Bifenthrin",null,"Federal Restricted Use","FMC Corporation Agricultural Products Group",47406]
["Bromacil 80","81927-4-0","Bromacil, Diuron",null,"State Restricted Use","Alligare LLC",46305]
["Bromacil/Diuron 40/40","81927-3-0","Bromacil",null,"State Restricted Use","Alligare LLC",46304]
["Brom-O-Gas 2% Preplant Soil Fumigant Contains 2% Chloropicrin","5785-42-0","Methyl bromide (NO INERT USE)",null,"Federal Restricted Use","Great Lakes Chemical Corporation",25000]
["Buctril + atrazine Herbicide","264-477-0","Bromoxynil octanoate, Atrazine",null,"Federal Restricted Use","Bayer CropScience LP",40857]
["Bullet Herbicide By Monsanto","524-418-0","Atrazine, Alachlor",null,"Federal Restricted Use","Monsanto Company",13421]
["Cadence Atz Herbicide","34704-950-0","Atrazine, Acetochlor",null,"Federal Restricted Use","Loveland Products, Inc.",48063]
["Cadence Herbicide","34704-926-0","Acetochlor",null,"Federal Restricted Use","Loveland Products, Inc.",46819]
["Cadence Lite Atz Herbicide","34704-952-0","Atrazine, Acetochlor",null,"Federal Restricted Use","Loveland Products, Inc.",48064]
["Callisto Xtra","100-1359-0","Atrazine, Mesotrione",null,"Federal Restricted Use","Syngenta Crop Protection, Inc.",52248]
["Captec 4L","66330-239-0","Captan",null,"Federal Restricted Use","Arysta LifeScience North America, LLC",47755]
["Capture 1.15G Insecticide/Miticide","279-3244-0","Bifenthrin",null,"Federal Restricted Use","FMC Corporation Agricultural Products Group",39020]
["Capture 2 EC Insecticide/Miticide (CO 060004)","279-3069-0","Bifenthrin",null,"Federal Restricted Use","FMC Corporation Agricultural Products Group",11221]
["Capture LFR Insecticide","279-3302-0","Bifenthrin",null,"Federal Restricted Use","FMC Corporation Agricultural Products Group",46206]
["Cheminova Methyl 4 EC","67760-43-0","Parathion-methyl",null,"Federal Restricted Use","Cheminova, Inc.",35229]
["Chem-Sect Brand Cube Powder Fish Toxicant","82397-5-0","Rotenone, Cube Resins other than rotenone",null,"Federal Restricted Use","TIFA International LLC",46002]
["Chlor-O-Pic Fumigant","5785-17-0","Chloropicrin",null,"Federal Restricted Use","Great Lakes Chemical Corporation",33355]
["Chlorpyrifos 4E AG","66222-19-0","Chlorpyrifos",null,"Federal Restricted Use","Arysta LifeScience North America, LLC",47368]
["Chlorpyrifos 4E AG","66330-278-0","Chlorpyrifos",null,"Federal Restricted Use","Makhteshim-Agan of North America Inc.",42405]
["Chlorpyrifos E-Pro 2 Insecticide","79676-10-0","Chlorpyrifos",null,"Federal Restricted Use","Gro-Pro LLC dba Etigra",48894]
["Coal Tar Creosote","61468-1-0","Coal tar creosote",null,"Federal Restricted Use","Koppers, Inc.",10901]
["Cobalt","62719-575-0","Chlorpyrifos, gamma-Cyhalothrin",null,"Federal Restricted Use","Dow AgroSciences LLC",48456]
["Cobalt Advanced","62719-615-0","Chlorpyrifos, lambda-Cyhalothrin",null,"Federal Restricted Use","Dow AgroSciences LLC",52976]
["Comite","400-104-0","Propargite",null,"Federal Restricted Use","Chemtura Corporation",49775]
["Comite II (RUP) SLN CO-940006 & CO-080002","400-154-0","Propargite",null,"Federal Restricted Use","Chemtura Corporation",49652]
["Compound DRC-1339  98% Concentrate For Reformulating Purposes Only","56228-10-0","Starlicide",null,"Federal Restricted Use","USDA-APHIS-Wildlife Services",15350]
["Compound DRC-1339 98% Concentrate - Pidgeons","56228-28-0","Starlicide",null,"Federal Restricted Use","USDA-APHIS-Wildlife Services",40734]
["Compound DRC-1339 Concentrate - Livestock, Nest & Fodder Depredations","56228-29-0","Starlicide",null,"Federal Restricted Use","USDA-APHIS-Wildlife Services",36190]
["Consero Insecticide","34704-953-0","Spinosad, gamma-Cyhalothrin",null,"Federal Restricted Use","Loveland Products, Inc.",48065]
["Co-Ral Emulsifiable Livestock Insecticide","11556-23-0","Coumaphos",null,"Federal Restricted Use","Bayer HealthCare LLC Animal Health Division ",41938]
["Cornbelt Atrazine 4l Micro Homogenized Flowable Herbicide","11773-1-0","Atrazine",null,"Federal Restricted Use","Van Diest Supply Company",12592]
["Cornbelt Atrazine 90df Water Dispersible Granule","11773-13-0","Atrazine",null,"Federal Restricted Use","Van Diest Supply Company",12591]
["Corvus Herbicide SLN CO-090002","264-1066-0","Thiencarbazone-methyl, Isoxaflutole",null,"Federal Restricted Use","Bayer CropScience LP",50776]
["Counter 15G Lock'n Load ","5481-545-0","Terbufos",null,"Federal Restricted Use","Amvac Chemical Corporation",48357]
["Counter 15G Smartbox Closed Loading System","5481-545-0","Terbufos",null,"Federal Restricted Use","Amvac Chemical Corporation",48139]
["Counter 20G Smartbox","5481-562-0","Terbufos",null,"Federal Restricted Use","Amvac Chemical Corporation",50938]
["Counter 20G Systemic Insecticide - Nematicide (Lock'NLoad)","5481-562-0","Terbufos",null,"Federal Restricted Use","Amvac Chemical Corporation",52305]
["Creosote Oil","61483-9-0","Coal tar creosote",null,"Federal Restricted Use","KMG-Bernuth, Inc.",46594]
["Creosote Solution (pressure Applications)","61468-3-0","Coal tar creosote",null,"Federal Restricted Use","Koppers, Inc.",27224]
["Creosote/Petroleum Solution","61468-9-0","Coal tar creosote",null,"Federal Restricted Use","Koppers, Inc.",43111]
["CropSmart Bifenthrin 2EC","83772-2-85945","Bifenthrin",null,"Federal Restricted Use","CropSmart, LLC",51280]
["CropSmart Lambda-Cy","83772-3-85945","lambda-Cyhalothrin",null,"Federal Restricted Use","CropSmart, LLC",51188]
["CropSmart Permethrin 3.2EC","83772-6-85945","Permethrin, mixed cis,trans",null,"Federal Restricted Use","CropSmart, LLC",52557]
["Decis 1.5 EC Insecticide","264-1011-0","Deltamethrin",null,"Federal Restricted Use","Bayer CropScience LP",46159]
["Declare Insecticide","67760-96-0","gamma-Cyhalothrin",null,"Federal Restricted Use","Cheminova, Inc.",50960]
["Defcon 2.1G","264-813-5905","Cyfluthrin, Phostebupirim",null,"Federal Restricted Use","Helena Chemical Company",44961]
["Degesch Fumi-Cel","72959-6-0","Magnesium phosphide",null,"Federal Restricted Use","Degesch America, Inc.",37055]
["Degesch Fumi-Strip","72959-6-0","Magnesium phosphide",null,"Federal Restricted Use","Degesch America, Inc.",37060]
["Degesch MagToxin Prepac Spot Fumigant","72959-7-0","Magnesium phosphide",null,"Federal Restricted Use","Degesch America, Inc.",37056]
["Degesch Phostoxin Pellets","72959-5-0","Aluminum phosphide",null,"Federal Restricted Use","Degesch America, Inc.",37054]
["Degesch Phostoxin Prepac Rope","72959-8-0","Aluminum phosphide",null,"Federal Restricted Use","Degesch America, Inc.",37057]
["Degesch Phostoxin Tablet Prepac","72959-9-0","Aluminum phosphide",null,"Federal Restricted Use","Degesch America, Inc.",37058]
["Degesch Phostoxin Tablets","72959-4-0","Aluminum phosphide",null,"Federal Restricted Use","Degesch America, Inc.",37053]
["Degree Xtra Herbicide","524-511-0","Atrazine, Acetochlor",null,"Federal Restricted Use","Monsanto Company",34846]
["Detia Fumex","72959-10-0","Aluminum phosphide",null,"Federal Restricted Use","Degesch America, Inc.",37059]
["DetiaPhos Pellets","72959-5-0","Aluminum phosphide",null,"Federal Restricted Use","Degesch America, Inc.",39047]
["DetiaPhos Tablets","72959-4-0","Aluminum phosphide",null,"Federal Restricted Use","Degesch America, Inc.",39048]
["Diazinon 50W","66222-10-0","Diazinon",null,"Federal Restricted Use","Makhteshim-Agan of North America Inc.",42120]
["Diazinon AG500","66222-9-0","Diazinon",null,"Federal Restricted Use","Makhteshim-Agan of North America Inc.",42119]
["Diazinon AG600 WBC Insecticide","66222-103-34704","Diazinon",null,"Federal Restricted Use","Loveland Products, Inc.",43823]
["DiBro 4+2","228-386-0","Bromacil, Diuron",null,"State Restricted Use","Nufarm Americas Inc.",51780]
["Dibrom 8 Emulsive (RUP)","5481-479-0","Naled",null,"Federal Restricted Use","Amvac Chemical Corporation",49663]
["Dibrom Concentrate Insecticide (RUP)","5481-480-0","Naled",null,"Federal Restricted Use","Amvac Chemical Corporation",50085]
["Dimilin 25W","400-465-0","Diflubenzuron",null,"Federal Restricted Use","Chemtura Corporation",40101]
["Dimilin 2L","400-461-0","Diflubenzuron",null,"Federal Restricted Use","Chemtura Corporation",40100]
["Dimilin 4L","400-474-0","Diflubenzuron",null,"Federal Restricted Use","Chemtura Corporation",47908]
["Discipline 2EC","5481-517-0","Bifenthrin",null,"Federal Restricted Use","Amvac Chemical Corporation",42696]
["Di-Syston 15% Granular Systemic Insecticide","264-723-0","Disulfoton",null,"Federal Restricted Use","Bayer CropScience LP",41102]
["Di-Syston 8 Emulsifiable Systemic Insecticide","264-734-0","Disulfoton",null,"Federal Restricted Use","Bayer CropScience LP",41097]
["Ditrac Tracking Powder","12455-56-0","Diphacinone",null,"Federal Restricted Use","Bell Laboratories, Inc.",10799]
["Diuron 4L","66222-54-0","Diuron",null,"State Restricted Use","Makhteshim-Agan of North America Inc.",40499]
["Diuron 4L Herbicide","9779-329-0","Diuron",null,"State Restricted Use","Winfield Solutions, LLC",37480]
["Diuron 80 WDG Weed Killer","34704-648-0","Diuron",null,"State Restricted Use","Loveland Products, Inc.",43378]
["Diuron 80DF Herbicide","66222-51-0","Diuron",null,"State Restricted Use","Makhteshim-Agan of North America Inc.",39306]
["Dow AgroSciences FulTime","62719-371-0","Atrazine, Acetochlor",null,"Federal Restricted Use","Dow AgroSciences LLC",37751]
["Dow Agrosciences Grazon P+D","62719-182-0","Picloram, triisopropanolamine salt, Triisopropanolamine 2,4-dichlorophenoxyacetate",null,"Federal Restricted Use","Dow AgroSciences LLC",32047]
["Dow AgroSciences Kerb 50WP","62719-397-0","Propyzamide",null,"Federal Restricted Use","Dow AgroSciences LLC",39914]
["Dow AgroSciences Keystone","62719-368-0","Atrazine, Acetochlor",null,"Federal Restricted Use","Dow AgroSciences LLC",39871]
["Dow AgroSciences Keystone LA","62719-479-0","Atrazine, Acetochlor",null,"Federal Restricted Use","Dow AgroSciences LLC",40712]
["Dow Agrosciences LLC Lorsban-4E","62719-220-0","Chlorpyrifos",null,"Federal Restricted Use","Dow AgroSciences LLC",32050]
["Dow Agrosciences LLC Tordon 101 Mixture","62719-5-0","Picloram, triisopropanolamine salt, Triisopropanolamine 2,4-dichlorophenoxyacetate",null,"Federal Restricted Use","Dow AgroSciences LLC",31995]
["Dow Agrosciences LLC Tordon 22K","62719-6-0","Picloram-potassium",null,"Federal Restricted Use","Dow AgroSciences LLC",31996]
["Dow AgroSciences Profume","62719-376-0","Sulfuryl fluoride",null,"Federal Restricted Use","Dow AgroSciences LLC",42826]
["Dow Agrosciences Spike 20P","62719-121-0","Tebuthiuron",null,"State Restricted Use","Dow AgroSciences LLC",32034]
["Dow Agrosciences Telone C-17","62719-12-0","1,3-Dichloropropene, Chloropicrin",null,"Federal Restricted Use","Dow AgroSciences LLC",31998]
["Dow Agrosciences Telone C-35 Soil Fungicide And Nematicide","62719-302-0","1,3-Dichloropropene, Chloropicrin",null,"Federal Restricted Use","Dow AgroSciences LLC",33568]
["Dow Agrosciences Telone II","62719-32-0","1,3-Dichloropropene",null,"Federal Restricted Use","Dow AgroSciences LLC",32003]
["Dow Agrosciences Tordon K","62719-17-0","Picloram-potassium",null,"Federal Restricted Use","Dow AgroSciences LLC",31999]
["Drexel Atra-5 Herbicide","19713-80-0","Atrazine",null,"Federal Restricted Use","Drexel Chemical Company",49482]
["Drexel Atrazine 4L Herbicide","19713-11-0","Atrazine",null,"Federal Restricted Use","Drexel Chemical Company",1967]
["Drexel Atrazine 90DF Herbicide","19713-76-0","Atrazine",null,"Federal Restricted Use","Drexel Chemical Company",23012]
["Drexel Diuron 4L Herbicide","19713-36-0","Diuron",null,"State Restricted Use","Drexel Chemical Company",675]
["Drexel Drex-PH3 Aluminum Phosphide Fumigant Pellets","19713-569-0","Aluminum phosphide",null,"Federal Restricted Use","Drexel Chemical Company",47629]
["Drexel Drex-PH3 Aluminum Phosphide Fumigant Tablets","19713-571-0","Aluminum phosphide",null,"Federal Restricted Use","Drexel Chemical Company",47628]
["Drexel Endosulfan 3EC Insecticide","19713-399-0","Endosulfan",null,"Federal Restricted Use","Drexel Chemical Company",33003]
["Drummond A Lawson Brand Terra-Cide Emulsifiable Vegetation Killer Concentrate","10807-206-40208","Prometon",null,"State Restricted Use","Lawson Products Inc. dba Drummond, a Lawson Brand",41641]
["Drummond American Wither Non-Selective Weed Killer","10807-205-40208","Bromacil, Acetic acid, (2,4-dichlorophenoxy)-, 2-ethylhexyl ester",null,"State Restricted Use","Lawson Products Inc. dba Drummond, a Lawson Brand",41640]
["Dupont Asana XL Insecticide","352-515-0","Esfenvalerate",null,"Federal Restricted Use","E.I. DuPont de Nemours & Co., Inc. -352",12588]
["Dupont Basis Gold Herbicide","352-585-0","Atrazine, Nicosulfuron",null,"Federal Restricted Use","E.I. DuPont de Nemours & Co., Inc. -352",29355]
["DuPont Breakfree ATZ Herbicide","352-724-0","Atrazine, Acetochlor",null,"Federal Restricted Use","E.I. DuPont de Nemours & Co., Inc. -352",47502]
["DuPont Breakfree ATZ Lite Herbicide","352-723-0","Atrazine, Acetochlor",null,"Federal Restricted Use","E.I. DuPont de Nemours & Co., Inc. -352",47503]
["DuPont Breakfree Herbicide","352-722-0","Acetochlor",null,"Federal Restricted Use","E.I. DuPont de Nemours & Co., Inc. -352",47501]
["DuPont Bromacil Technical","352-325-0","Bromacil",null,"State Restricted Use","E.I. DuPont de Nemours & Co., Inc. -352",2083]
["DuPont Cinch ATZ Herbicide","100-817-352","Atrazine, S-Metolachlor",null,"Federal Restricted Use","E.I. DuPont de Nemours & Co., Inc. -352",40530]
["DuPont Cinch ATZ Lite Herbicide","100-827-352","Atrazine, S-Metolachlor",null,"Federal Restricted Use","E.I. DuPont de Nemours & Co., Inc. -352",40063]
["Dupont Hyvar X Herbicide Wettable Powder","352-287-0","Bromacil",null,"State Restricted Use","E.I. DuPont de Nemours & Co., Inc. -352",2047]
["Dupont Hyvar X-L Herbicide Water Soluble Liquid","352-346-0","Bromacil, lithium salt ",null,"State Restricted Use","E.I. DuPont de Nemours & Co., Inc. -352",2044]
["Dupont Karmex DF Herbicide","352-692-0","Diuron",null,"State Restricted Use","E.I. DuPont de Nemours & Co., Inc. -352",47185]
["Dupont Karmex IWC Herbicide","352-692-0","Diuron",null,"State Restricted Use","E.I. DuPont de Nemours & Co., Inc. -352",47186]
["Dupont Karmex XP Herbicide","352-692-0","Diuron",null,"State Restricted Use","E.I. DuPont de Nemours & Co., Inc. -352",47187]
["Dupont Krovar I DF Herbicide Dispersible Granules","352-505-0","Bromacil, Diuron",null,"State Restricted Use","E.I. DuPont de Nemours & Co., Inc. -352",10273]
["Dupont Lannate LV Insecticide Water Soluble Liquid","352-384-0","Methomyl",null,"Federal Restricted Use","E.I. DuPont de Nemours & Co., Inc. -352",2062]
["Dupont Lannate SP Insecticide","352-342-0","Methomyl",null,"Federal Restricted Use","E.I. DuPont de Nemours & Co., Inc. -352",29122]
["DuPont Prequel Herbicide","352-779-0","Isoxaflutole, Rimsulfuron",null,"Federal Restricted Use","E.I. DuPont de Nemours & Co., Inc. -352",53013]
["DuPont Steadfast ATZ Herbicide","352-619-0","Atrazine, Nicosulfuron",null,"Federal Restricted Use","E.I. DuPont de Nemours & Co., Inc. -352",41064]
["DuPont Super Tin 80WP Fungicide","352-689-0","Fentin hydroxide",null,"Federal Restricted Use","E.I. DuPont de Nemours & Co., Inc. -352",47060]
["Dupont Velpar AlfaMax Gold Herbicide","352-666-0","Diuron, Hexazinone",null,"State Restricted Use","E.I. DuPont de Nemours & Co., Inc. -352",46471]
["Dupont Vendex 50WP Miticide","352-658-0",null,null,"Federal Restricted Use","E.I. DuPont de Nemours & Co., Inc. -352",44722]
["Dupont Vydate C-LV Insecticide/Nematicide","352-532-0","Oxamyl",null,"Federal Restricted Use","E.I. DuPont de Nemours & Co., Inc. -352",37313]
["Dupont Vydate L Insecticide/Nematicide (SLN CO-010005)","352-372-0","Oxamyl",null,"Federal Restricted Use","E.I. DuPont de Nemours & Co., Inc. -352",2080]
["Durashield CS Controlled Release Premise Insecticide","499-419-0","Chlorpyrifos",null,"Federal Restricted Use","Whitmire Micro-Gen Research Laboratories, Inc.",29828]
["Dursban 50W in Water Soluble Packets","62719-72-0","Chlorpyrifos",null,"Federal Restricted Use","Dow AgroSciences LLC",32060]
["ECO2FUME Fumigant Gas","68387-7-0","Phosphine",null,"Federal Restricted Use","Cytec Industries, Inc.",35602]
["Elston Gopher Getter Bait","35380-1-0","Strychnine",null,"Federal Restricted Use","Elston Manufacturing, Inc.",33260]
["Endigo ZC","100-1276-0","Thiamethoxam, lambda-Cyhalothrin",null,"Federal Restricted Use","Syngenta Crop Protection, Inc.",49279]
["Enforcer Scorcher Total Vegetation Killer Original Water Based Formula","40849-69-0","Prometon",null,"State Restricted Use","Zep Commercial Sales & Service, A Division of Zep, Inc.",35939]
["Epic DF Herbicide  SLN#:  CO-030010","264-800-0","Flufenacet, Isoxaflutole",null,"Federal Restricted Use","Bayer CropScience LP",41992]
["Epi-Mek 0.15EC Miticide/Insecticide","100-1154-0","Abamectin",null,"Federal Restricted Use","Syngenta Crop Protection, Inc.",43148]
["Establish ATZ Herbicide","7969-192-55467","Atrazine, dimethenamide-P",null,"Federal Restricted Use","Tenkoz, Inc.",45668]
["Establish Lite Herbicide","7969-200-55467","Atrazine, dimethenamide-P",null,"Federal Restricted Use","Tenkoz, Inc.",45669]
["Exile CS","100-1066-10504","lambda-Cyhalothrin",null,"Federal Restricted Use","RXV Products",49757]
["Expert Herbicide","100-1161-0","Atrazine, Glyphosate-isopropylammonium",null,"Federal Restricted Use","Syngenta Crop Protection, Inc.",42136]
["Fanfare 2EC","66222-99-0","Bifenthrin",null,"Federal Restricted Use","Makhteshim-Agan of North America Inc.",43201]
["Field Master","524-497-0","Atrazine, Glyphosate-isopropylammonium",null,"Federal Restricted Use","Monsanto Company",31767]
["Firebird Pro","81943-9-0","Bifenthrin",null,"Federal Restricted Use","Phoenix Environmental Care LLC",49849]
["Firestorm","82557-1-400","Paraquat dichloride",null,"Federal Restricted Use","Chemtura Corporation",47123]
["FMC Mustang Insecticide","279-3126-0","Zeta-Cypermethrin",null,"Federal Restricted Use","FMC Corporation Agricultural Products Group",39019]
["Force 3G Smartbox","100-1075-5481","Tefluthrin",null,"Federal Restricted Use","Amvac Chemical Corporation",42983]
["Force CS Insecticide","100-1253-0","Tefluthrin",null,"Federal Restricted Use","Syngenta Crop Protection, Inc.",47972]
["Formula 190-X Liquid Weed Killer","10807-204-70799","Bromacil, Acetic acid, (2,4-dichlorophenoxy)-, 2-ethylhexyl ester",null,"State Restricted Use","State Industrial Products",48848]
["Formula 400-X Parch","10088-55-70799","Prometon ",null,"State Restricted Use","State Industrial Products",53124]
["Fort Dodge Gopher Bait","322-1-0","Strychnine",null,"Federal Restricted Use","Fort Dodge Chemical Company",25387]
["Fumitoxin Pellets","72959-2-0","Aluminum phosphide",null,"Federal Restricted Use","D & D Holdings",37560]
["Fumitoxin Pellets","72959-2-5857","Aluminum phosphide",null,"Federal Restricted Use","Pestcon Systems, Inc.",39162]
["Fumitoxin Tablets","72959-1-0","Aluminum phosphide",null,"Federal Restricted Use","D & D Holdings",37559]
["Fumitoxin Tablets","72959-1-5857","Aluminum phosphide",null,"Federal Restricted Use","Pestcon Systems, Inc.",39161]
["Furadan 4F Insecticide - Nematicide (code 279) ","279-2876-0","Carbofuran",null,"Federal Restricted Use","FMC Corporation Agricultural Products Group",17173]
["Furadan LFR Insecticide/Nematicide","279-3310-0","Carbofuran",null,"Federal Restricted Use","FMC Corporation Agricultural Products Group",46207]
["Gastoxin Fumigation Pellets","43743-2-0","Aluminum phosphide",null,"Federal Restricted Use","Bernardo Chemicals, Inc.",9093]
["Gastoxin Fumigation Sachets","43743-3-0","Aluminum phosphide",null,"Federal Restricted Use","Bernardo Chemicals, Inc.",14886]
["Gastoxin Fumigation Tablets","43743-1-0","Aluminum phosphide",null,"Federal Restricted Use","Bernardo Chemicals, Inc.",9094]
["Gordon's Professional Turf & Ornamental Products Vegemec Vegetation Killer","33955-454-2217","2,4-D, Prometon",null,"State Restricted Use","PBI-Gordon Corporation",21875]
["Gordon's Vegetation Killer","33955-454-0","2,4-D, Prometon",null,"State Restricted Use","PBI-Gordon Corporation",46391]
["Govern 4E Insecticide","62719-220-55467","Chlorpyrifos",null,"Federal Restricted Use","Tenkoz, Inc.",43205]
["Gowan Supracide 2E  (SLN CO-010003)","10163-236-0","Methidathion",null,"Federal Restricted Use","Gowan Company",37755]
["Gramoxone Inteon (CO 060007)","100-1217-0","Paraquat dichloride",null,"Federal Restricted Use","Syngenta Crop Protection, Inc.",45540]
["Grenade ER Insecticide","100-1066-773","lambda-Cyhalothrin",null,"Federal Restricted Use","Schering-Plough Animal Health Corporation",44005]
["Griffin Direx 4L Herbicide","1812-257-0",null,null,"State Restricted Use","Griffin LLC",32652]
["Griffin Direx 80DF Herbicide","1812-362-0",null,null,"State Restricted Use","Griffin LLC",32659]
["Griffin Karmex DF Herbicide","1812-362-0",null,null,"State Restricted Use","Griffin LLC",32998]
["Griffin Karmex IWC 4L Diuron Flowable Liquid Herbicide","1812-257-0",null,null,"State Restricted Use","Griffin LLC",35735]
["Griffin Karmex IWC Herbicide","1812-362-0",null,null,"State Restricted Use","Griffin LLC",34298]
["Griffin Super Tin 80wp Fungicide Agpak Water Soluble Pack","1812-350-0","Fentin hydroxide",null,"Federal Restricted Use","Griffin LLC",32662]
["Guthion Solupak","264-733-0","Azinphos-Methyl",null,"Federal Restricted Use","Makhteshim-Agan of North America Inc.",50591]
["Guthion Solupak","66222-162-0","Azinphos-Methyl",null,"Federal Restricted Use","Makhteshim-Agan of North America Inc.",49305]
["Harness Xtra 5.6L Herbicide Premix For Corn By Monsanto","524-485-0","Atrazine, Acetochlor",null,"Federal Restricted Use","Monsanto Company",27435]
["Harness Xtra Herbicide By Monsanto","524-480-0","Atrazine, Acetochlor",null,"Federal Restricted Use","Monsanto Company",25766]
["Harpoon","64014-9-0","Oxydemeton-methyl",null,"Federal Restricted Use","Florida Silvics Inc.",46342]
["Helena Atrazine 4F","100-497-5905","Atrazine",null,"Federal Restricted Use","Helena Chemical Company",42777]
["Helena Atrazine 90-DG","100-585-5905","Atrazine",null,"Federal Restricted Use","Helena Chemical Company",42778]
["Helena Chemical Ammo 2.5 EC Insecticide","279-3027-5905","Cypermethrin",null,"Federal Restricted Use","Helena Chemical Company",37799]
["Helena Lambda","100-1097-5905","lambda-Cyhalothrin",null,"Federal Restricted Use","Helena Chemical Company",44775]
["HelmQuat 3SL","74530-32-0","Paraquat dichloride",null,"Federal Restricted Use","Helm Agro US, Inc.",51169]
["Hero EW Insecticide","279-3329-0","Bifenthrin, Zeta-Cypermethrin",null,"Federal Restricted Use","FMC Corporation Agricultural Products Group",50678]
["HERO Insecticide","279-3315-0","Bifenthrin, Zeta-Cypermethrin",null,"Federal Restricted Use","FMC Corporation Agricultural Products Group",47820]
["HiredHand P+D","62719-182-0","Picloram, triisopropanolamine salt, Triisopropanolamine 2,4-dichlorophenoxyacetate",null,"Federal Restricted Use","Dow AgroSciences LLC",47292]
["Hoelon 3EC Herbicide","264-641-0","Diclofop-methyl",null,"Federal Restricted Use","Bayer CropScience LP",40596]
["Holster Insecticide","34704-875-0","Cypermethrin",null,"Federal Restricted Use","Loveland Products, Inc.",46060]
["Imazuron E-Pro Herbicide","79676-54-0",null,null,"State Restricted Use","Gro-Pro LLC dba Etigra",48791]
["Infantry 4L","100-497-534","Atrazine",null,"Federal Restricted Use","GrowMark, Inc.",50754]
["Infantry 90DF","100-585-534","Atrazine",null,"Federal Restricted Use","GrowMark, Inc.",50755]
["Intermountain Farmers Sterilan II Weed And Grass Killer","34913-15-46665","Diuron, Tebuthiuron",null,"State Restricted Use","Intermountain Farmers Association",3944]
["INTRRO Preemergent Herbicide","524-314-0","Alachlor",null,"Federal Restricted Use","Monsanto Company",42055]
["Kaiso 24 WG Insecticide","228-526-0","lambda-Cyhalothrin",null,"Federal Restricted Use","Nufarm Americas Inc.",48701]
["Kaput Rodent Flea Control Bait","72500-17-0","Imidacloprid",null,"Federal Restricted Use","Scimetrics, Ltd.",51088]
["Kaput-D Burrow Builder Pocket Gopher Bait","72500-12-0","Diphacinone",null,"Federal Restricted Use","Scimetrics, Ltd.",48818]
["Karate Insecticide","100-1086-0","lambda-Cyhalothrin",null,"Federal Restricted Use","Syngenta Crop Protection, Inc.",51006]
["Karate Insecticide","100-998-0","lambda-Cyhalothrin",null,"Federal Restricted Use","Syngenta Crop Protection, Inc.",44852]
["Karmex XP Herbicide","1812-362-0",null,null,"State Restricted Use","Griffin LLC",44429]
["Kendo Insecticide","74530-38-0","lambda-Cyhalothrin",null,"Federal Restricted Use","Helm Agro US, Inc.",51000]
["Kerb 50-W Herbicide (SLN CO-990010)","62719-397-0","Propyzamide",null,"Federal Restricted Use","Dow AgroSciences LLC",39666]
["Kerb SC","62719-578-0","Propyzamide",null,"Federal Restricted Use","Dow AgroSciences LLC",49822]
["Kerb WSP Turf & Ornamental Herbicide","62719-397-0","Propyzamide",null,"Federal Restricted Use","Dow AgroSciences LLC",39667]
["Killz-All 60 Pellets","81951-2-0","Aluminum phosphide",null,"Federal Restricted Use","Roc Enterprises LLC",47023]
["Killz-All 60 Tablets","81951-1-0","Aluminum phosphide",null,"Federal Restricted Use","Roc Enterprises LLC",47024]
["KMG P1 Coal Tar Creosote","61483-9-0","Coal tar creosote",null,"Federal Restricted Use","KMG-Bernuth, Inc.",53113]
["K-Pam HL (RUP label)","5481-483-0","Potassium N-methyldithiocarbamate",null,"Federal Restricted Use","Amvac Chemical Corporation",52901]
["Lambda T","100-1112-5905","lambda-Cyhalothrin",null,"Federal Restricted Use","Helena Chemical Company",44210]
["Lambda-Cy EC Insecticide (RUP)","70506-121-0","lambda-Cyhalothrin",null,"Federal Restricted Use","United Phosphorus, Inc.",47982]
["LambdaStar 1 CS","71532-25-73006","lambda-Cyhalothrin",null,"Federal Restricted Use","LG International (America), Inc.",50237]
["LambdaStar Insecticide","71532-20-73006","lambda-Cyhalothrin",null,"Federal Restricted Use","LG International (America), Inc.",48151]
["Lambdastar Plus","71532-29-73006","lambda-Cyhalothrin",null,"Federal Restricted Use","LG International (America), Inc.",52619]
["Lamcap","100-1112-0","lambda-Cyhalothrin",null,"Federal Restricted Use","Syngenta Crop Protection, Inc.",53328]
["Lariat Flowable Herbicide By Monsanto","524-329-0","Atrazine, Alachlor",null,"Federal Restricted Use","Monsanto Company",11250]
["Larvin Brand 3.2 Thiodicarb Insecticide/Ovicide","264-379-0","Thiodicarb",null,"Federal Restricted Use","Bayer CropScience LP",40352]
["INTPRO Preemeyent Herbicide","524-314-0","Alachlor",null,"Federal Restricted Use","Monsanto Company",42055]
["Leverage 2.7 Suspension Emulsion Insecticide","264-770-0","Cyfluthrin, Imidacloprid",null,"Federal Restricted Use","Bayer CropScience LP",41082]
["Leverage 360 Insecticide","264-1104-0","beta-Cyfluthrin, Imidacloprid",null,"Federal Restricted Use","Bayer CropScience LP",51513]
["Lexar Herbicide","100-1201-0","Atrazine, S-Metolachlor",null,"Federal Restricted Use","Syngenta Crop Protection, Inc.",43756]
["Lorsban Advanced (SLN: CO-080008 & CO-100004)","62719-591-0","Chlorpyrifos",null,"Federal Restricted Use","Dow AgroSciences LLC",50006]
["M-44 Cyanide Capsules","56228-15-0","Sodium cyanide",null,"Federal Restricted Use","USDA-APHIS-Wildlife Services",13138]
["Makhteshim Agan Sonora 4SC Herbicide","66222-38-0","Prometon",null,"State Restricted Use","Makhteshim-Agan of North America Inc.",37566]
["Marc Strip-It Weed Killer","44446-61-12204","Bromacil, Dimethylamine 2,4-dichlorophenoxyacetate",null,"State Restricted Use","Fremarek, Inc. DBA Mid-American Research Chemical Corp.",37414]
["Marc Wipe-Out, A Granular Weed Killer, Contains Bromacil & Diuron","228-227-12204","Bromacil, Diuron",null,"State Restricted Use","Fremarek, Inc. DBA Mid-American Research Chemical Corp.",37408]
["Marksman Herbicide","7969-136-0","Atrazine, Dicamba, potassium salt",null,"Federal Restricted Use","BASF Corporation",30922]
["Martin's Gopher Bait 50R","53883-24-0","Strychnine",null,"Federal Restricted Use","Control Solutions, Inc.",37853]
["Mauget Inject-A-Cide B (contains Technical Bidrin)","7946-11-0","Dicrotophos",null,"Federal Restricted Use","J. J. Mauget Co.",19662]
["Medal II AT Herbicide","100-1165-0","Atrazine, S-Metolachlor",null,"Federal Restricted Use","Syngenta Crop Protection, Inc.",44721]
["Menace GC 7.9% Flowable","228-458-0","Bifenthrin",null,"Federal Restricted Use","Nufarm Americas Inc.",45754]
["Menace GC Granular","228-452-0","Bifenthrin",null,"Federal Restricted Use","Nufarm Americas Inc.",45567]
["Mesurol 75-W Insecticide/Molluscicide","10163-231-0","Methiocarb",null,"Federal Restricted Use","Gowan Company",30985]
["Mesurol Pro Insecticide Molluscicide, For Control Of Slugs, Snails And insects","10163-228-0","Methiocarb",null,"Federal Restricted Use","Gowan Company",35215]
["Metabrom 100","8622-16-0","Methyl bromide (NO INERT USE)",null,"Federal Restricted Use","ICL-IP America, Inc.",16023]
["Metabrom Q","8622-55-0","Methyl bromide (NO INERT USE)",null,"Federal Restricted Use","ICL-IP America, Inc.",41186]
["Metapicrin","8622-43-0","Chloropicrin",null,"Federal Restricted Use","ICL-IP America, Inc.",15949]
["Meth-O-Gas 100 Commodity Fumigant","5785-11-0","Methyl bromide (NO INERT USE)",null,"Federal Restricted Use","Great Lakes Chemical Corporation",2837]
["Meth-O-Gas Q Commodity Fumigant For Quarantine/Regulatory Use Only","5785-41-0","Methyl bromide (NO INERT USE)",null,"Federal Restricted Use","Great Lakes Chemical Corporation",27198]
["Micro-Tech Herbicide By Monsanto","524-344-0","Alachlor",null,"Federal Restricted Use","Monsanto Company",30566]
["Midas 25:75","66330-42-0","Methane, iodo-, Chloropicrin",null,"Federal Restricted Use","Arysta LifeScience North America, LLC",49256]
["Midas 33:67","66330-59-0","Methane, iodo-, Chloropicrin",null,"Federal Restricted Use","Arysta LifeScience North America, LLC",49257]
["Midas 50:50","66330-57-0","Methane, iodo-, Chloropicrin",null,"Federal Restricted Use","Arysta LifeScience North America, LLC",49258]
["Midas 98:2","66330-43-0","Methane, iodo-, Chloropicrin",null,"Federal Restricted Use","Arysta LifeScience North America, LLC",49259]
["Midas EC Bronze","66330-58-0","Methane, iodo-, Chloropicrin",null,"Federal Restricted Use","Arysta LifeScience North America, LLC",49254]
["Midas EC Gold","66330-60-0","Methane, iodo-, Chloropicrin",null,"Federal Restricted Use","Arysta LifeScience North America, LLC",49255]
["Misty 2 Plus 2 Granular Weed Killer","10807-149-0","Bromacil, Diuron",null,"State Restricted Use","Amrep, Inc.",153]
["Misty Ex-It Emulsifiable Concentrate","10807-144-0","Bromacil",null,"State Restricted Use","Amrep, Inc.",149]
["Misty Repco Kill III","10807-205-0","Bromacil, Acetic acid, (2,4-dichlorophenoxy)-, 2-ethylhexyl ester",null,"State Restricted Use","Amrep, Inc.",42831]
["Misty Repco Kill LF","10807-204-0","Bromacil, Acetic acid, (2,4-dichlorophenoxy)-, 2-ethylhexyl ester",null,"State Restricted Use","Amrep, Inc.",50313]
["Misty Weed-A-Cide Concentrate","10807-146-0","Prometon",null,"State Restricted Use","Amrep, Inc.",151]
["MOCAP 15% Granular Nematicide-Insecticide","264-457-0","Ethoprop",null,"Federal Restricted Use","Bayer CropScience LP",40353]
["MOCAP 15% Lock 'n Load Nematicide-Insecticide","264-457-0","Ethoprop",null,"Federal Restricted Use","Bayer CropScience LP",40865]
["MOCAP EC Nematicide Insecticide","264-458-0","Ethoprop",null,"Federal Restricted Use","Bayer CropScience LP",40866]
["Mojave 70 EG","74477-9-81927",null,null,"State Restricted Use","Alligare LLC",49278]
["Monitor 4 Liquid Insecticide","264-729-0","Methamidophos",null,"Federal Restricted Use","Bayer CropScience LP",41100]
["MSR Spray Concentrate","10163-220-0","Oxydemeton-methyl",null,"Federal Restricted Use","Gowan Company",40731]
["Mustang Max EC Insecticide (SLN CO-080001)","279-3327-0","Zeta-Cypermethrin",null,"Federal Restricted Use","FMC Corporation Agricultural Products Group",48777]
["Mustang Max EW Insecticide","279-3328-0","Zeta-Cypermethrin",null,"Federal Restricted Use","FMC Corporation Agricultural Products Group",49251]
["Mustang Max Insecticide ","279-3249-0","Zeta-Cypermethrin",null,"Federal Restricted Use","FMC Corporation Agricultural Products Group",40793]
["Nufarm Abamectin 0.15 EC Miticide/Insecticide","228-658-0","Abamectin",null,"Federal Restricted Use","Nufarm Americas Inc.",51959]
["Nufarm Agri Tin","55146-72-0","Fentin hydroxide",null,"Federal Restricted Use","Nufarm Americas, Inc., AGT Division",40332]
["Nufarm Chlorpyrifos SPC 2 Insecticide","228-625-0","Chlorpyrifos",null,"Federal Restricted Use","Nufarm Americas Inc.",52413]
["Nufarm Chlorpyrifos SPC 4 Insecticide","228-624-0","Chlorpyrifos",null,"Federal Restricted Use","Nufarm Americas Inc.",52414]
["Nufos 4e Insecticide","67760-28-0","Chlorpyrifos",null,"Federal Restricted Use","Cheminova, Inc.",30335]
["Omite-30WS (GUP)","400-427-0","Propargite",null,"Federal Restricted Use","Chemtura Corporation",40092]
["Omite-30WS RUP","400-427-0","Propargite",null,"Federal Restricted Use","Chemtura Corporation",49737]
["OnyxPro Insecticide","279-4269-0","Bifenthrin",null,"Federal Restricted Use","FMC Corporation Agricultural Products Group",46552]
["Opti-Gro Opti-Kill","1769-159-66114","Bromacil",null,"State Restricted Use","Check-Mark",42468]
["Osmose K-33 (60%) Wood Preservative (for Pressure Plant Use Only)","3008-34-0","Arsenic acid anhydride, Chromic acid",null,"Federal Restricted Use","Osmose, Inc.",35597]
["Osmose Mitc-Fume","69850-1-75341","Methyl isothiocyanate",null,"Federal Restricted Use","Osmose Utilities Services, Inc.",41843]
["DOW Agroscience LLC Tordon 22K","62719-6-0","Picloram-potassium",null,"Federal Restricted Use","Dow AgroSciences LLC",31996]
["OverTime ATZ Herbicide","62719-368-5905","Atrazine, Acetochlor",null,"Federal Restricted Use","Helena Chemical Company",46259]
["OverTime ATZ Lite Herbicide","62719-479-5905","Atrazine, Acetochlor",null,"Federal Restricted Use","Helena Chemical Company",46260]
["OverTime Herbicide","62719-367-5905","Acetochlor",null,"Federal Restricted Use","Helena Chemical Company",46258]
["Parallel Plus","11603-41-66222",null,null,"Federal Restricted Use","Makhteshim-Agan of North America Inc.",49101]
["Parallel Plus","66222-132-0","Atrazine, Metolachlor",null,"Federal Restricted Use","Makhteshim-Agan of North America Inc.",46423]
["Paraquat Concentrate","82542-3-0","Paraquat dichloride",null,"Federal Restricted Use","Source Dynamics, LLC",49874]
["Parazone 3SL","66222-130-0","Paraquat dichloride",null,"Federal Restricted Use","Makhteshim-Agan of North America Inc.",47598]
["Penncap-M","70506-193-0","Parathion-methyl",null,"Federal Restricted Use","United Phosphorus, Inc.",49392]
["Perdition II","228-386-40208","Bromacil, Diuron",null,"State Restricted Use","Lawson Products Inc. dba Drummond, a Lawson Brand",48008]
["PermaStar AG Agricultural Insecticide","71532-15-73006","Permethrin, mixed cis,trans",null,"Federal Restricted Use","LG International (America), Inc.",48124]
["Permethrin","34704-873-0","Permethrin, mixed cis,trans",null,"Federal Restricted Use","Loveland Products, Inc.",44820]
["Permethrin 3.2 AG","66330-337-0","Permethrin, mixed cis,trans",null,"Federal Restricted Use","Arysta LifeScience North America, LLC",50421]
["Permethrin 3.2 EC","70506-9-5905","Permethrin, mixed cis,trans",null,"Federal Restricted Use","Helena Chemical Company",45857]
["Permethrin 3.2EC ","279-3014-5905","Permethrin, mixed cis,trans",null,"Federal Restricted Use","Helena Chemical Company",47859]
["Perm-Up 3.2 EC Insecticide","70506-9-0","Permethrin, mixed cis,trans",null,"Federal Restricted Use","United Phosphorus, Inc.",38812]
["Petersen's Pocket Gopher Killer I For Pocket Gopher Control Only","10031-1-0","Strychnine",null,"Federal Restricted Use","Petersen Seeds, Inc.",22959]
["Petersen's Pocket Gopher Killer Iii For Pocket Gopher Control Only","10031-3-0","Strychnine",null,"Federal Restricted Use","Petersen Seeds, Inc.",22958]
["Phorate 20 G ","34704-259-0","Phorate",null,"Federal Restricted Use","Loveland Products, Inc.",43695]
["Phorate 20G","2749-521-0","Phorate",null,"Federal Restricted Use","Aceto Agricultural Chemicals Corporation",46733]
["PhosFume Fumigation Pellets","70506-14-1015","Aluminum phosphide",null,"Federal Restricted Use","Douglas Products & Packaging",42135]
["PhosFume Fumigation Tablets","70506-13-1015","Aluminum phosphide",null,"Federal Restricted Use","Douglas Products & Packaging",42134]
["Pic Plus Fumigant","8853-6-11220","Chloropicrin",null,"Federal Restricted Use","Trical, Inc.",50922]
["Pic-Brom 25 Preplant Soil Fumigant","8536-11-8853","Methyl bromide (NO INERT USE), Chloropicrin",null,"Federal Restricted Use","Hendrix and Dail, Inc.",51137]
["Picloram 22K","42750-79-81927","Picloram-potassium",null,"Federal Restricted Use","Alligare LLC",46405]
["Picloram K","42750-81-81927","Picloram-potassium",null,"Federal Restricted Use","Alligare LLC",46404]
["Pilot 15G Chlorpyrifos Agricultural Insecticide Low Odor Formula","33658-10-0","Chlorpyrifos",null,"Federal Restricted Use","Gharda Chemicals Limited",44762]
["Pilot 4E Chlorpyrifos Agricultural Insecticide","33658-26-0","Chlorpyrifos",null,"Federal Restricted Use","Gharda Chemicals Limited",53370]
["Pilot 4E Chlorpyrifos Agricultural Insecticide, Low Odor Formula","33658-9-0","Chlorpyrifos",null,"Federal Restricted Use","Gharda Chemicals Limited",44763]
["Pounce 1.5 G Insecticide (code 692)","279-3059-0","Permethrin, mixed cis,trans",null,"Federal Restricted Use","FMC Corporation Agricultural Products Group",8276]
["Pounce 25 WP Insecticide (code 96)","279-3051-0","Permethrin, mixed cis,trans",null,"Federal Restricted Use","FMC Corporation Agricultural Products Group",2360]
["Pramitol 25E","66222-22-72693","Prometon",null,"State Restricted Use","Universal Crop Protection Alliance, LLC",39145]
["Pramitol 25E Herbicide","66222-22-0","Prometon",null,"State Restricted Use","Loveland Products, Inc.",43694]
["Pramitol 25E Herbicide","66222-22-34704","Prometon",null,"State Restricted Use","Makhteshim-Agan of North America Inc.",33671]
["Pramitol 5PS Pelleted Herbicide","66222-23-0","Sodium metaborate (NaBO2), Sodium chlorate, Prometon",null,"State Restricted Use","Loveland Products, Inc.",43723]
["Pramitol 5PS Pelleted Herbicide","66222-23-34704","Sodium metaborate (NaBO2), Sodium chlorate, Prometon",null,"State Restricted Use","Universal Crop Protection Alliance, LLC",37405]
["Pramitol 5PS Pelleted Herbicide","66222-23-72693","Sodium metaborate (NaBO2), Sodium chlorate, Prometon",null,"State Restricted Use","Makhteshim-Agan of North America Inc.",34632]
["Prentox Prenfish Toxicant Liquid Emulsifiable","655-422-0","Rotenone, Cube Resins other than rotenone",null,"Federal Restricted Use","Prentiss Incorporated",29266]
["Prentox Rotenone Fish Toxicant Powder","655-691-0","Rotenone, Cube Resins other than rotenone",null,"Federal Restricted Use","Prentiss Incorporated",35913]
["Prentox Synpren-Fish Toxicant","655-421-0","Piperonyl butoxide, Rotenone",null,"Federal Restricted Use","Prentiss Incorporated",35915]
["Prescription Treatment brand Attain Nursery Insecticide/Miticide Microemulsion","53883-165-499","Bifenthrin",null,"Federal Restricted Use","Whitmire Micro-Gen Research Laboratories, Inc.",47089]
["Prescription Treatment Brand DuraGuard Me Microencapsulated Insecticide","499-367-0","Chlorpyrifos",null,"Federal Restricted Use","Whitmire Micro-Gen Research Laboratories, Inc.",29934]
["Prescription Treatment Brand Duraplex TR Micro Total Release Insecticide","499-405-0","Chlorpyrifos, Cyfluthrin",null,"Federal Restricted Use","Whitmire Micro-Gen Research Laboratories, Inc.",30186]
["Proaxis","74921-3-5905","gamma-Cyhalothrin",null,"Federal Restricted Use","Helena Chemical Company",43289]
["Proaxis Insecticide","74921-3-34704","gamma-Cyhalothrin",null,"Federal Restricted Use","PyTech Chemicals GMBH",53639]
["Proaxis Insecticide","74921-3-55467","gamma-Cyhalothrin",null,"Federal Restricted Use","Tenkoz, Inc.",43268]
["ProMITE 50WP","67690-40-0","Fenbutatin-oxide",null,"Federal Restricted Use","SePRO Corporation",46018]
["Propel ATZ Herbicide","7969-192-32938","Atrazine, dimethenamide-P",null,"Federal Restricted Use","Rosen's, Inc.",45882]
["Propel ATZ Lite Herbicide","7969-200-32938","Atrazine, dimethenamide-P",null,"Federal Restricted Use","Rosen's, Inc.",45883]
["Province Insecticide","100-1112-55467","lambda-Cyhalothrin",null,"Federal Restricted Use","Tenkoz, Inc.",50718]
["Prozap Zinc Phosphide Oat Bait","61282-14-0","Zinc phosphide (Zn3P2)",null,"Federal Restricted Use","Hacco, Inc.",33131]
["PyroFos CS","53883-264-0","Chlorpyrifos",null,"Federal Restricted Use","Control Solutions, Inc.",52314]
["Quali-Pro Bifenthrin GC .2G","53883-119-73220","Bifenthrin",null,"Federal Restricted Use","FarmSaver.com, LLC",48259]
["Quali-Pro Bifenthrin Golf & Nursery 7.9F","53883-165-73220","Bifenthrin",null,"Federal Restricted Use","FarmSaver.com, LLC",48994]
["Quali-Pro Bifenthrin Nursery 7.9F","53883-165-73220","Bifenthrin",null,"Federal Restricted Use","FarmSaver.com, LLC",46954]
["Quali-Pro Chlorpyrifos 4E","66222-19-0","Chlorpyrifos",null,"Federal Restricted Use","FarmSaver.com, LLC",46822]
["Quali-Pro Chlorpyrifos 4E","66222-19-73220","Chlorpyrifos",null,"Federal Restricted Use","Makhteshim-Agan of North America Inc.",51581]
["Quali-Pro Lambda GC-O","53883-244-66222","lambda-Cyhalothrin",null,"Federal Restricted Use","Makhteshim-Agan of North America Inc.",51122]
["Radius Herbicide (SLN CO-060003)","264-852-0","Flufenacet, Isoxaflutole",null,"Federal Restricted Use","Bayer CropScience LP",44891]
["RCO Avalon Mixed Gopher Grain Bait","5042-34-0","Strychnine",null,"Federal Restricted Use","RCO International, Inc.",51621]
["Reaper 0.15 EC Miticide/Insecticide","34704-923-0","Abamectin",null,"Federal Restricted Use","Loveland Products, Inc.",47765]
["Renounce 20WP Insecticide","264-784-0","Cyfluthrin",null,"Federal Restricted Use","Bayer CropScience LP",41077]
["Respect EC Insecticide","279-3327-7969","Zeta-Cypermethrin",null,"Federal Restricted Use","BASF Corporation",49126]
["Respect Insecticide","279-3249-7969","Zeta-Cypermethrin",null,"Federal Restricted Use","BASF Corporation",47707]
["Rifle Plus Herbicide","34704-860-0","Atrazine, Dicamba, potassium salt",null,"Federal Restricted Use","Loveland Products, Inc.",44199]
["Riverdale DiBro 4 + 2","228-386-0","Bromacil, Diuron",null,"State Restricted Use","Nufarm Americas Inc.",42850]
["ZP AG Pellets","12455-17-3240","Zinc phosphide (Zn3P2)",null,"Federal Restricted Use","Motomco",49634]
["ZP Rodent Bait AG","12455-17-0","Zinc phosphide (Zn3P2)",null,"Federal Restricted Use","Bell Laboratories, Inc.",381]
["Rozol Blue Tracking Powder","7173-172-0","Chlorophacinone",null,"Federal Restricted Use","Liphatech, Inc.",16171]
["Rozol Pocket Gopher Bait Burrow Builder Formula","7173-244-0","Chlorophacinone",null,"Federal Restricted Use","Liphatech, Inc.",44945]
["Rozol Prairie Dog Bait","7173-286-0","Chlorophacinone",null,"Federal Restricted Use","Liphatech, Inc.",51257]
["Rozol Tracking Powder","7173-113-0","Chlorophacinone",null,"Federal Restricted Use","Liphatech, Inc.",16166]
["Rozol Vole Bait","7173-242-0","Chlorophacinone",null,"Federal Restricted Use","Liphatech, Inc.",50722]
["Sanafoam VapoRooter II (co-pack)","1015-70-0","Dichlobenil, Metam-sodium",null,"Federal Restricted Use","Douglas Products & Packaging",46950]
["Scimitar GC Insecticide","100-1088-0","lambda-Cyhalothrin",null,"Federal Restricted Use","Syngenta Crop Protection, Inc.",38380]
["Scourge Insecticide with Resmethrin/Piperonyl Buitoxide 4%+12% MF Formula II","432-716-0","Piperonyl butoxide, Resmethrin",null,"Federal Restricted Use","Bayer Environmental Science, A Business Group of Bayer CropScience LP",46852]
["Scourge Insecticide with Resmethrin/Piperonyl Butoxide 18%+54% MF Formula II","432-667-0","Piperonyl butoxide, Resmethrin",null,"Federal Restricted Use","Bayer Environmental Science, A Business Group of Bayer CropScience LP",46851]
["Sectagon 42 ","61842-6-0","Metam-sodium",null,"Federal Restricted Use","Tessenderlo Kerley, Inc.",52811]
["Sectagon-K54","61842-7-0","Potassium N-methyldithiocarbamate",null,"Federal Restricted Use","Tessenderlo Kerley, Inc.",52810]
["Sentry Atrazine 4L","33270-10-0","Atrazine",null,"Federal Restricted Use","United Suppliers, Inc.",39338]
["Sentry Atrazine 90DF","33270-9-0","Atrazine",null,"Federal Restricted Use","United Suppliers, Inc.",39337]
["S-FenvaloStar","71532-21-73006","Esfenvalerate",null,"Federal Restricted Use","LG International (America), Inc.",48201]
["Silencer","66222-104-0","lambda-Cyhalothrin",null,"Federal Restricted Use","Makhteshim-Agan of North America Inc.",44809]
["Sipcam Agro USA, Inc. Atrazine 4L Flowable Herbicide","35915-4-60063","Atrazine",null,"Federal Restricted Use","Sipcam Agro Usa, Inc.",36245]
["Sipcam Agro USA, Inc. Stalwart Xtra Herbicide","60063-23-0","Atrazine, Metolachlor",null,"Federal Restricted Use","Sipcam Agro Usa, Inc.",42540]
["Slider ATZ","34704-1041-0","Atrazine, dimethenamide-P",null,"Federal Restricted Use","Loveland Products, Inc.",51716]
["Slider ATZ Lite","34704-1042-0","Atrazine, dimethenamide-P",null,"Federal Restricted Use","Loveland Products, Inc.",51717]
["Smartchoice 5G (Lock'N Load","5481-561-0","Bifenthrin, Chlorethoxyfos",null,"Federal Restricted Use","Amvac Chemical Corporation",52306]
["Sniper","34704-858-0","Bifenthrin",null,"Federal Restricted Use","Loveland Products, Inc.",44467]
["Solera Abamectin 0.15EC Ag Insecticide/Miticide","82542-11-84237","Abamectin",null,"Federal Restricted Use","Solera ATO, LLC",51125]
["Solera Abamectin 0.15EC T&O Insecticide/Miticide","82542-12-84237","Abamectin",null,"Federal Restricted Use","Solera ATO, LLC",51124]
["Sortie ATZ Herbicide","7969-192-5905","Atrazine, dimethenamide-P",null,"Federal Restricted Use","Helena Chemical Company",50324]
["Sortie ATZ Lite Herbicide","7969-200-5905","Atrazine, dimethenamide-P",null,"Federal Restricted Use","Helena Chemical Company",50325]
["SpraKil S-5 Brush Control Granules","34913-10-0","Tebuthiuron",null,"State Restricted Use","SSI Maxim Company, Inc.",33338]
["Sprakil SK-13 Granular Weed Killer","34913-15-0","Diuron, Tebuthiuron",null,"State Restricted Use","SSI Maxim Company, Inc.",33341]
["Sprakil SK-26 Granular Weed Killer","34913-16-0","Diuron, Tebuthiuron",null,"State Restricted Use","SSI Maxim Company, Inc.",33340]
["Starlicide Complete","67517-8-59613","Starlicide",null,"Federal Restricted Use","Earth City Resources",36949]
["State TKO Non-Selective Weed Killer","44446-61-70799","Bromacil, Dimethylamine 2,4-dichlorophenoxyacetate",null,"State Restricted Use","State Industrial Products",39087]
["Steed Insecticide","279-3380-0","Bifenthrin, Zeta-Cypermethrin",null,"Federal Restricted Use","FMC Corporation Agricultural Products Group",52331]
["Stratos Dicamba + Atrazine Agricultural Herbicide","33658-16-0","Atrazine, Dicamba, potassium salt ",null,"Federal Restricted Use","Gharda Chemicals Limited",44761]
["Sulfuric Acid Desiccant","57559-1-0","Sulfuric acid",null,"Federal Restricted Use","Kennecott Utah Copper LLC",13744]
["Sulfuric Acid- Potato Vine Desiccant 1","65878-1-0","Sulfuric acid",null,"Federal Restricted Use","Chemtrade Refinery Service, Inc.",46202]
["Super Tin 4L","70506-212-0","Fentin hydroxide",null,"Federal Restricted Use","United Phosphorus, Inc.",49794]
["Super Tin 80WP","70506-214-0","Fentin hydroxide",null,"Federal Restricted Use","United Phosphorus, Inc.",50435]
["Swagger","34704-1045-0","Bifenthrin, Imidacloprid",null,"Federal Restricted Use","Loveland Products, Inc.",52608]
["SYN-A17227A Herbicide","100-1356-0","Atrazine, S-Metolachlor",null,"Federal Restricted Use","Syngenta Crop Protection, Inc.",53096]
["SYN-A17227A Herbicide","100-1356-0","Atrazine, S-Metolachlor",null,"Federal Restricted Use","Syngenta Crop Protection, Inc.",53096]
["Syngenta AAtrex 4L Herbicide","100-497-0","Atrazine",null,"Federal Restricted Use","Syngenta Crop Protection, Inc.",37916]
["Syngenta AAtrex Nine-0 Herbicide","100-585-0","Atrazine",null,"Federal Restricted Use","Syngenta Crop Protection, Inc.",37918]
["Syngenta Agri-Mek 0.15 EC Miticide/Insecticide","100-898-0","Abamectin",null,"Federal Restricted Use","Syngenta Crop Protection, Inc.",37920]
["Syngenta Bicep II Magnum Herbicide","100-817-0","Atrazine, S-Metolachlor",null,"Federal Restricted Use","Syngenta Crop Protection, Inc.",37931]
["Syngenta Bicep Lite II Magnum Herbicide","100-827-0","Atrazine, S-Metolachlor",null,"Federal Restricted Use","Syngenta Crop Protection, Inc.",37932]
["Syngenta Force 3G Insecticide","100-1075-0","Tefluthrin",null,"Federal Restricted Use","Syngenta Crop Protection, Inc.",38374]
["Syngenta Lumax Selective Herbicide","100-1152-0","Atrazine, S-Metolachlor",null,"Federal Restricted Use","Syngenta Crop Protection, Inc.",40065]
["Syngenta Proclaim Insecticide","100-904-0","Emamectin benzoate",null,"Federal Restricted Use","Syngenta Crop Protection, Inc.",37963]
["Talstar GC Granular Insecticide (code 1683)","279-3167-0","Bifenthrin",null,"Federal Restricted Use","FMC Corporation Agricultural Products Group",28917]
["Talstar S Select Insecticide","279-3155-0","Bifenthrin",null,"Federal Restricted Use","FMC Corporation Agricultural Products Group",47254]
["TEMIK Brand 15 G Aldicarb Pesticide","264-330-0","Aldicarb",null,"Federal Restricted Use","Bayer CropScience LP",40356]
["Temik brand 15G Lock 'n Load Aldicarb Pesticide","264-330-0","Aldicarb",null,"Federal Restricted Use","Bayer CropScience LP",40884]
["Tempo 20 WP Golf Course Insecticide in Water Soluble Packets","432-1338-0","Cyfluthrin",null,"Federal Restricted Use","Bayer Environmental Science, A Business Group of Bayer CropScience LP",43506]
["Tempo Ultra GC Insecticide","432-1452-0","beta-Cyfluthrin",null,"Federal Restricted Use","Bayer Environmental Science, A Business Group of Bayer CropScience LP",46458]
["Temprano","67760-71-400","Abamectin",null,"Federal Restricted Use","Chemtura Corporation",49100]
["Tenkoz Permethrin 3.2EC Insecticide","70506-9-55467","Permethrin, mixed cis,trans",null,"Federal Restricted Use","Tenkoz, Inc.",47631]
["Tenkoz Volley ATZ Corn Herbicide","55467-7-0","Atrazine, Acetochlor",null,"Federal Restricted Use","Tenkoz, Inc.",42644]
["Tenkoz Volley ATZ Lite Corn Herbicide","55467-6-0","Atrazine, Acetochlor",null,"Federal Restricted Use","Tenkoz, Inc.",42643]
["Tenkoz Volley Corn Herbicide","55467-8-0","Acetochlor",null,"Federal Restricted Use","Tenkoz, Inc.",42645]
["Terr-0-Gas 98 Preplant Soil Fumigant","5785-22-0","Methyl bromide (NO INERT USE), Chloropicrin",null,"Federal Restricted Use","Great Lakes Chemical Corporation",2809]
["Terr-O-Gas 67 Preplant Soil Fumigant","5785-24-0","Methyl bromide (NO INERT USE), Chloropicrin",null,"Federal Restricted Use","Great Lakes Chemical Corporation",2819]
["Thimet 20-G EZ Load","5481-530-0","Phorate",null,"Federal Restricted Use","Amvac Chemical Corporation",48631]
["Thimet 20-G Lock \"N Load","5481-530-0","Phorate",null,"Federal Restricted Use","Amvac Chemical Corporation",46495]
["Thimet 20-G SmartBox","5481-530-0","Phorate",null,"Federal Restricted Use","Amvac Chemical Corporation",46390]
["Thionex 3EC (RUP)","66222-63-0","Endosulfan",null,"Federal Restricted Use","Makhteshim-Agan of North America Inc.",50067]
["Thionex 50W (RUP)","66222-62-0","Endosulfan",null,"Federal Restricted Use","Makhteshim-Agan of North America Inc.",50119]
["TimberFume II","75340-1-0","Chloropicrin",null,"Federal Restricted Use","Osmose Railroad Services, Inc.",41528]
["Timectin 0.15 EC Ag Insecticide/Miticide","84229-2-0","Abamectin",null,"Federal Restricted Use","Tide International, USA, Inc.",50519]
["Tombstone","34704-912-0","Cyfluthrin",null,"Federal Restricted Use","Loveland Products, Inc.",46388]
["Tombstone Helios Insecticide","34704-978-0","Cyfluthrin",null,"Federal Restricted Use","Loveland Products, Inc.",47856]
["Topsite 2.5 G Herbicide","34913-22-0","Diuron, Imazapyr",null,"State Restricted Use","SSI Maxim Company, Inc.",33342]
["Total Solutions Weed Easy","10088-76-68562","Bromacil",null,"State Restricted Use","Total Solutions",25836]
["Trace Mountain Bifenthrin 2 EC","86154-4-0","Bifenthrin",null,"Federal Restricted Use","Trace Mountain LLC",51977]
["TREE-age","100-1309-74578","Emamectin benzoate",null,"Federal Restricted Use","Arborjet, Inc.",52303]
["Tremor","33270-12-0","Acetochlor",null,"Federal Restricted Use","United Suppliers, Inc.",52199]
["Tremor AT","33270-13-0","Atrazine, Acetochlor",null,"Federal Restricted Use","United Suppliers, Inc.",52200]
["Tremor AT Lite","33270-14-0","Atrazine, Acetochlor",null,"Federal Restricted Use","United Suppliers, Inc.",52201]
["Tri-Clor Fumigant","58266-2-11220","Chloropicrin",null,"Federal Restricted Use","Trical, Inc.",14255]
["Trooper 101 Mixture Herbicide","228-561-0","Picloram, Triisopropanolamine 2,4-dichlorophenoxyacetate",null,"Federal Restricted Use","Nufarm Americas Inc.",49430]
["Trooper 22K Herbicide","228-535-0","Picloram-potassium",null,"Federal Restricted Use","Nufarm Americas Inc.",49234]
["Trooper Extra Selective Herbicide","228-586-0","Picloram, Dicamba",null,"Federal Restricted Use","Nufarm Americas Inc.",50809]
["Trooper P+D Herbicide","228-530-0","Picloram, triisopropanolamine salt, Triisopropanolamine 2,4-dichlorophenoxyacetate",null,"Federal Restricted Use","Nufarm Americas Inc.",49124]
["Trooper Pro Herbicide","228-599-0","Picloram, triisopropanolamine salt, Fluroxypyr meptyl ",null,"Federal Restricted Use","Nufarm Americas Inc.",51478]
["Trumpet EC Insecticide (RUP)","5481-481-0","Naled",null,"Federal Restricted Use","Amvac Chemical Corporation",50086]
["Turf King","10088-55-68562","Prometon ",null,"State Restricted Use","Total Solutions",25835]
["Ultiflora Miticide","10163-280-0","Milbemectin (A mixture of >=70% Milbemcin A4, & <=30% Milbemycin A3) ",null,"Federal Restricted Use","Gowan Company",46992]
["UP-Star GC Granulare Insecticde","70506-74-0","Bifenthrin",null,"Federal Restricted Use","United Phosphorus, Inc.",46383]
["Up-Star SC Lawn and Nursery Insecticide/Miticide","70506-23-0","Bifenthrin",null,"Federal Restricted Use","United Phosphorus, Inc.",42502]
["Valent Danitol 2.4 EC Spray","59639-35-0","Fenpropathrin",null,"Federal Restricted Use","Valent U.S.A. Corporation",35588]
["Valent Tame 2.4 Ec Spray (Insecticide-Miticide)","59639-77-0","Fenpropathrin",null,"Federal Restricted Use","Valent U.S.A. Corporation",20478]
["Vapam HL Soil Fumigant (RUP label)","5481-468-0","Metam-sodium",null,"Federal Restricted Use","Amvac Chemical Corporation",52900]
["VAPORPH3OS Phosphine Fumigant","68387-8-0","Phosphine",null,"Federal Restricted Use","Cytec Industries, Inc.",39900]
["Vegetation Manager Diuron 80 DF","66222-51-74477","Diuron",null,"State Restricted Use","Vegetation Management LLC",45520]
["Vendex 50WP","70506-211-0","Fenbutatin-oxide",null,"Federal Restricted Use","United Phosphorus, Inc.",50241]
["Vikane","62719-4-0","Sulfuryl fluoride",null,"Federal Restricted Use","Dow AgroSciences LLC",47698]
["Voliam Xpress Insecticide","100-1320-0","Chlorantraniliprole, lambda-Cyhalothrin",null,"Federal Restricted Use","Syngenta Crop Protection, Inc.",50222]
["Warhawk","34704-857-0","Chlorpyrifos",null,"Federal Restricted Use","Loveland Products, Inc.",44283]
["Warhawk","62719-220-34704","Chlorpyrifos",null,"Federal Restricted Use","Loveland Products, Inc.",43578]
["Warrior II with Zeon Technology","100-1295-0","lambda-Cyhalothrin",null,"Federal Restricted Use","Syngenta Crop Protection, Inc.",49665]
["Warrior Insecticide with Zeon Technology","100-1112-0","lambda-Cyhalothrin",null,"Federal Restricted Use","Syngenta Crop Protection, Inc.",38844]
["Weed Blast 4-G Weed Killer","34913-19-0","Bromacil, Diuron",null,"State Restricted Use","SSI Maxim Company, Inc.",39328]
["Weevil-Cide Gas Bags","70506-15-0","Aluminum phosphide",null,"Federal Restricted Use","United Phosphorus, Inc.",40624]
["Weevil-Cide Pellets","70506-14-0","Aluminum phosphide",null,"Federal Restricted Use","United Phosphorus, Inc.",40623]
["Weevil-Cide Tablets","70506-13-0","Aluminum phosphide",null,"Federal Restricted Use","United Phosphorus, Inc.",40622]
["Whirlwind","62719-220-5905","Chlorpyrifos",null,"Federal Restricted Use","Helena Chemical Company",43287]
["Wilco Gopher Getter Ag Bait","36029-7-0","Strychnine",null,"Federal Restricted Use","Wilco Distributors, Inc.",33716]
["Wisdom EZ Golf Course","5481-518-0","Bifenthrin",null,"Federal Restricted Use","Amvac Chemical Corporation",46719]
["Wisdom Flowable","5481-519-0","Bifenthrin",null,"Federal Restricted Use","Amvac Chemical Corporation",43446]
["Wisdom GC Granular","5481-518-0","Bifenthrin",null,"Federal Restricted Use","Amvac Chemical Corporation",43361]
["Wither LVP Non-Selective Weed Killer","10807-204-40208","Bromacil, Acetic acid, (2,4-dichlorophenoxy)-, 2-ethylhexyl ester",null,"State Restricted Use","Lawson Products Inc. dba Drummond, a Lawson Brand",53280]
["Wither Non-Selective Weed Killer Spray","44446-61-40208","Bromacil, Dimethylamine 2,4-dichlorophenoxyacetate",null,"State Restricted Use","Lawson Products Inc. dba Drummond, a Lawson Brand",44848]
["Wolmanac Concentrate 60%","62190-14-0","Arsenic acid anhydride, Chromic acid",null,"Federal Restricted Use","Arch Wood Protection, Inc.",32966]
["Z-Bifenthrin 2EC Insecticide/Miticide","86363-1-86656","Bifenthrin",null,"Federal Restricted Use","Fuzion Technologies, LLC",52340]
["Z-Chlorpyrifos 4EC","86363-3-86656","Chlorpyrifos",null,"Federal Restricted Use","Fuzion Technologies, LLC",52117]
["Zep Concentrated Weed Killer and Soil Sterilant","1270-113-0","Bromacil",null,"State Restricted Use","Zep Inc.",50359]
["Zinc Phosphide on Oats","4271-16-0","Zinc phosphide (Zn3P2)",null,"Federal Restricted Use","R & M Exterminators, Inc.",42977]
["Zinc Phosphide On Steam-Rolled Oats For Prairie Dog Control","56228-14-0","Zinc phosphide (Zn3P2)",null,"Federal Restricted Use","USDA-APHIS-Wildlife Services",15352]
["Zinc Phosphide on Wheat for Mouse Control","56228-3-0","Zinc phosphide (Zn3P2)",null,"Federal Restricted Use","USDA-APHIS-Wildlife Services",48700]
["Zoro Miticide/Insecticide","67760-71-0","Abamectin",null,"Federal Restricted Use","Cheminova, Inc.",47712]
["ZP AG Oats","12455-102-3240","Zinc phosphide (Zn3P2)",null,"Federal Restricted Use","Motomco",49635]
["ZP AG Pellets","12455-17-3240","Zinc phosphide (Zn3P2)",null,"Federal Restricted Use","Motomco",49634]
["ZP Rodent Bait Ag","12455-17-0","Zinc phosphide (Zn3P2)",null,"Federal Restricted Use","Bell Laboratories, Inc.",381]
["ZP Rodent Oat Bait AG","12455-102-0","Zinc phosphide (Zn3P2)",null,"Federal Restricted Use","Bell Laboratories, Inc.",48440]
["ZP Tracking Powder For Indoor Use Only","12455-16-0","Zinc phosphide (Zn3P2)",null,"Federal Restricted Use","Bell Laboratories, Inc.",385]

{"sheet":"Other Pesticides","index":60,"n_rows":12,"n_cols":7,"rows_kept":12,"cut":false,"hidden":false,"merged":[]}
["Product Name","EPA Registration Number","Active Ingredient(s)","Restricted Entry Interval (REI)","Applicator"]
["(Select From List)"]
["Glyphosate (Roundup)","(not required)"]
["Metam Sodium (Sistan)","(not required)"]
["Acetochlor (Acetamide)","(not required)"]
["2,4-D (Weed-B-Gone)","(not required)"]
["Malathion (Carbofos)","(not required)"]
["Methyl Bromide","(not required)"]
["Metolachlor-s","(not required)"]
["Pendimethalin (Prowl)","(not required)"]
["Trifluralin (Treflan)","(not required)",null,null,null,null,"Common General Use Products"]
[null,null,null,null,null,null,"products previously used"]